Workbook

Sheet 1st Advance Payment
A1: STATE OF CALIFORNIA | J1: Purchase Authority: 5227
A2: BOARD OF STATE AND COMMUNITY CORRECTIONS | J2: ='INVOICE 15'!L2 -> Purchase Order: 2928
A3: Advance Payment Invoice - Form BSCC 201A (Revised 06/2020)
B6: Program: | C6: Adult Reentry Grant | H6: Grantee: | I6: ='INVOICE 15'!B7 -> Victor Valley Family Resource Center
B8: Contract #: | C8: ='INVOICE 15'!B9 -> BSCC 430-19 | H8: Address | I8: ='INVOICE 15'!L56 -> P.O. Box 1248
J9: Address Line 1
B10: Term: | C10: 2019-08-01 | D10: TO | E10: 2023-02-28 | I10: ='INVOICE 15'!L58 -> Victorville, CA 92393
J11: Address Line 2
B13: Advance Payment # | C13: 1 ARG 2019 | G13: Please Note: The California State Controller's Office will send all checks directly to the address listed in the "BSCC Supplier Data" section at the bottom of this invoice.
B15: Effective Invoice # | C15: 1
A18: Advance Payment Invoice
J19: Total Grant Award: | K19: ='INVOICE 15'!B23 -> 3000000
J20: 1st Advance Total: | K20: =SUM(ROUNDUP(K19/3,0)) -> 1000000
J21: Grant Award Balance: | K21: =SUM(K19-K20) -> 2000000
F29: BSCC USE ONLY
B31: Approved By: | C31: Colleen Stoner | J31: BSCC Supplier Data
C32: BSCC Field Representative | I32: ='INVOICE 15'!L54 -> VICTORVALL-020
J33: Supplier Name
B34: Date: | C34: 2020-03-06 | I34: ='INVOICE 15'!L52 -> 146536
J35: Supplier Number

Sheet INVOICE 1
A1: STATE OF CALIFORNIA | L1: Purchase Authority: 5227
A2: BOARD OF STATE AND COMMUNITY CORRECTIONS | L2: Purchase Order: 2928
A3: Financial Invoice - Form BSCC 201 (Revised 06/2020)
A5: Program: | B5: Adult Reentry Grant | K5: Please Note: The California State Controller's Office will send all checks directly to the address listed in the "BSCC Supplier Data" section at the bottom of this invoice.
A7: Grantee: | B7: Victor Valley Family Resource Center | F7: Project Title: | G7: RA
A9: Contract #: | B9: BSCC 430-19 | D9: Term: | E9: 2019-08-01 | F9: TO | G9: 2023-02-28 | L9: Invoicing Frequency | M9: Quarterly
A11: Invoice #: | B11: 1 | D11: Reporting Period: | E11: 2019-08-01 | F11: TO | G11: 2019-09-30 | H11: Due: | I11: 2019-11-15 | L11: Final Invoice (Y/N): | M11: No
A13: Line Items | B13: Budget | E13: Prior Expenditures | H13: This Reporting Period | K13: Balance | N13: Advance Disbursements
B14: Grant Funds | C14: Project Income | D14: TOTAL | E14: Grant Funds | F14: Project Income | G14: TOTAL | H14: Grant Funds | I14: Project Income | J14: TOTAL | K14: Grant Funds | L14: Project Income | M14: TOTAL
A15: Salaries & Benefits | B15: 684800 | C15: 0 | D15: =SUM(B15:C15) -> 684800 | E15: 0 | F15: 0 | G15: =SUM(E15:F15) -> 0 | H15: 0 | I15: 0 | J15: =SUM(H15:I15) -> 0 | K15: =B15-E15-H15 -> 684800 | L15: =C15-F15-I15 -> 0 | M15: =SUM(K15:L15) -> 684800 | N15: 1st Advance [3/6/20]
A16: Services & Supplies | B16: 2150000 | C16: 0 | D16: 2150000 | E16: 0 | F16: 0 | G16: =SUM(E16:F16) -> 0 | H16: 0 | I16: 0 | J16: 0 | K16: 2150000 | L16: 0 | M16: 2150000 | N16: ='1st Advance Payment'!K20 -> 1000000
A17: Professional Services | B17: 0 | C17: 0 | D17: 0 | E17: 0 | F17: 0 | G17: =SUM(E17:F17) -> 0 | H17: 0 | I17: 0 | J17: 0 | K17: 0 | L17: 0 | M17: 0
A18: NGO Subcontracts | B18: 0 | C18: 0 | D18: 0 | E18: 0 | F18: 0 | G18: 0 | H18: 0 | I18: 0 | J18: 0 | K18: 0 | L18: 0 | M18: 0 | N18: 2nd Advance [enter date]
A19: Equipment / Fixed Assets | B19: 7000 | C19: 0 | D19: 7000 | E19: 0 | F19: 0 | G19: 0 | H19: 0 | I19: 0 | J19: 0 | K19: 7000 | L19: 0 | M19: 7000 | N19: 0
A20: Data Collection & Progress Reporting | B20: 18950 | C20: 0 | D20: 18950 | E20: 0 | F20: 0 | G20: 0 | H20: 0 | I20: 0 | J20: 0 | K20: 18950 | L20: 0 | M20: 18950
A21: Other (Travel, Training, etc.) | B21: 5000 | C21: 0 | D21: 5000 | E21: 0 | F21: 0 | G21: 0 | H21: 0 | I21: 0 | J21: 0 | K21: 5000 | L21: 0 | M21: 5000 | N21: 3rd Advance [enter date]
A22: Indirect Costs | B22: 134250 | C22: 0 | D22: =SUM(B22:C22) -> 134250 | E22: 0 | F22: 0 | G22: 0 | H22: 0 | I22: 0 | J22: 0 | K22: 134250 | L22: 0 | M22: 134250 | N22: 0
A23: TOTAL | B23: =SUM(B15:B22) -> 3000000 | C23: 0 | D23: 3000000 | E23: 0 | F23: 0 | G23: 0 | H23: 0 | I23: 0 | J23: 0 | K23: 3000000 | L23: 0 | M23: 3000000 | N23: =SUM(N16+N19+N22) -> 1000000
A25: Project Income | C25: Income reported to date | D25: =I25 -> 0 | F25: Prior allocated income | G25: 0 | H25: This Period | I25: 0 | L25: Unallocated income balance | M25: =D25-G25 -> 0
C27: Grant funds expended to date: | D27: =SUM(E23,H23) -> 0 | G27: Grant funds claimed this period: | H27: =H23 -> 0 | L27: Percent of total disbursed
G28: Advance Disbursement Balance: | H28: =N23-D27 -> 1000000 | L28: funds expended to date: | N28: =D27/N23 -> 0
D32: Expenditure Descriptions - Units / $ Amounts | L32: Comments
A33: Salaries & Benefits | B33: Grant Funds | C33: =H15 -> 0
B34: Project Income | C34: =I15 -> 0
A35: Services & Supplies | B35: Grant Funds | C35: =H16 -> 0
B36: Project Income | C36: =I16 -> 0
A37: Professional Services | B37: Grant Funds | C37: =H17 -> 0
B38: Project Income | C38: =I17 -> 0
A39: NGO Subcontracts | B39: Grant Funds | C39: =H18 -> 0
B40: Project Income | C40: =I18 -> 0
A41: Equipment / Fixed Assets | B41: Grant Funds | C41: =H19 -> 0
B42: Project Income | C42: =I19 -> 0
A43: Data Collection & Progress Reporting | B43: Grant Funds | C43: =H20 -> 0
B44: Project Income | C44: =I20 -> 0
A45: Other (Travel, Training, etc.) | B45: Grant Funds | C45: =H21 -> 0
B46: Project Income | C46: =I21 -> 0
A47: Indirect Costs | B47: Grant Funds | C47: =H22 -> 0
B48: Project Income | C48: =I22 -> 0
A49: Project Income Earned | C49: =I25 -> 0
A50: PERSON PREPARING REPORT | E50: AUTHORIZED FINANCIAL OFFICER | L50: BSCC Supplier Data - Internal Use Only
E51: By checking the box below, I hereby certify that I am the authorized financial officer of the herein named agency. I further certify that I have not violated any of the provisions of Section 1090 of the Government Code in incurring the expenditures reported in this invoice, nor in any other way; that Sections 1090 through 1096 of the Government Code will not be violated in any way in the expenditure of funds pursuant to this invoice; that statement of funds above is true, correct, and in accordance with program provisions in all respects; and that all expenditures submitted after the expiration date of this contract are for the purpose of substantiating obligations legally incurred during the contract period. Furthermore, by submitting this invoice, I acknowledge that it must adhere to all of the requirements in the BSCC Grant Administration Guide, including any updates to the Guide during the term of the grant agreement.
A52: Sharon Green | L52: 146536
A53: Name, Title | L53: Supplier ID
A54: 760-887-1909 | L54: VICTORVALL-020
A55: Phone | L55: Supplier Name
A56: sgreen@vvfrc.com | L56: P.O. Box 1248
A57: Email | L57: Address Line 1
A58: 2020-03-27 | L58: Victorville, CA 92393
A59: Date | L59: Address Line 2
E61: MaryAnn McKinney-CFO
E62: Name, Title
E63: 760-669-0300
E64: Phone
E65: 2020-03-27
E66: Date
A68: BSCC USE ONLY
A69: Date Received: | C69: 2020-03-27 | G69: Approved By: | I69: Colleen Stoner | M69: Date: | N69: 2020-08-02
I70: BSCC Field Representative

Sheet INVOICE 2
A1: STATE OF CALIFORNIA | L1: Purchase Authority: 5227
A2: BOARD OF STATE AND COMMUNITY CORRECTIONS | L2: ='INVOICE 1'!L2:N2 -> Purchase Order: 2928
A3: Financial Invoice - Form BSCC 201 (Revised 06/2020)
A5: Program: | B5: Adult Reentry Grant | K5: Please Note: The California State Controller's Office will send all checks directly to the address listed in the "BSCC Supplier Data" section at the bottom of this invoice.
A7: Grantee: | B7: ='INVOICE 1'!B7 -> Victor Valley Family Resource Center | F7: Project Title: | G7: ='INVOICE 1'!G7:I7 -> RA
A9: Contract #: | B9: ='INVOICE 1'!B9 -> BSCC 430-19 | D9: Term: | E9: 2019-08-01 | F9: TO | G9: 2023-02-28 | L9: Invoicing Frequency | M9: Quarterly
A11: Invoice #: | B11: 2 | D11: Reporting Period: | E11: 2019-10-01 | F11: TO | G11: 2019-12-31 | H11: Due: | I11: 2020-02-14 | L11: Final Invoice (Y/N): | M11: No
A13: Line Items | B13: Budget | E13: Prior Expenditures | H13: This Reporting Period | K13: Balance | N13: Advance Disbursements
B14: Grant Funds | C14: Project Income | D14: TOTAL | E14: Grant Funds | F14: Project Income | G14: TOTAL | H14: Grant Funds | I14: Project Income | J14: TOTAL | K14: Grant Funds | L14: Project Income | M14: TOTAL
A15: Salaries & Benefits | B15: ='INVOICE 1'!B15 -> 684800 | C15: ='INVOICE 1'!C15 -> 0 | D15: =SUM(B15:C15) -> 684800 | E15: =SUM('INVOICE 1'!E15,'INVOICE 1'!H15) -> 0 | F15: =SUM('INVOICE 1'!F15,'INVOICE 1'!I15) -> 0 | G15: =SUM(E15:F15) -> 0 | H15: 0 | I15: 0 | J15: =SUM(H15:I15) -> 0 | K15: =B15-E15-H15 -> 684800 | L15: 0 | M15: =SUM(K15:L15) -> 684800 | N15: ='INVOICE 1'!N15 -> 1st Advance [3/6/20]
A16: Services & Supplies | B16: ='INVOICE 1'!B16 -> 2150000 | C16: ='INVOICE 1'!C16 -> 0 | D16: 2150000 | E16: =SUM('INVOICE 1'!E16,'INVOICE 1'!H16) -> 0 | F16: =SUM('INVOICE 1'!F16,'INVOICE 1'!I16) -> 0 | G16: =SUM(E16:F16) -> 0 | H16: 0 | I16: 0 | J16: 0 | K16: 2150000 | L16: 0 | M16: 2150000 | N16: ='INVOICE 1'!N16 -> 1000000
A17: Professional Services | B17: ='INVOICE 1'!B17 -> 0 | C17: ='INVOICE 1'!C17 -> 0 | D17: 0 | E17: =SUM('INVOICE 1'!E17,'INVOICE 1'!H17) -> 0 | F17: =SUM('INVOICE 1'!F17,'INVOICE 1'!I17) -> 0 | G17: =SUM(E17:F17) -> 0 | H17: 0 | I17: 0 | J17: 0 | K17: 0 | L17: 0 | M17: 0
A18: NGO Subcontracts | B18: ='INVOICE 1'!B18 -> 0 | C18: ='INVOICE 1'!C18 -> 0 | D18: 0 | E18: =SUM('INVOICE 1'!E18,'INVOICE 1'!H18) -> 0 | F18: =SUM('INVOICE 1'!F18,'INVOICE 1'!I18) -> 0 | G18: 0 | H18: 0 | I18: 0 | J18: 0 | K18: 0 | L18: 0 | M18: 0 | N18: ='INVOICE 1'!N18 -> 2nd Advance [enter date]
A19: Equipment / Fixed Assets | B19: ='INVOICE 1'!B19 -> 7000 | C19: ='INVOICE 1'!C19 -> 0 | D19: 7000 | E19: =SUM('INVOICE 1'!E19,'INVOICE 1'!H19) -> 0 | F19: =SUM('INVOICE 1'!F19,'INVOICE 1'!I19) -> 0 | G19: 0 | H19: 0 | I19: 0 | J19: 0 | K19: 7000 | L19: 0 | M19: 7000 | N19: ='INVOICE 1'!N19 -> 0
A20: Data Collection & Progress Reporting | B20: ='INVOICE 1'!B20 -> 18950 | C20: ='INVOICE 1'!C20 -> 0 | D20: 18950 | E20: =SUM('INVOICE 1'!E20,'INVOICE 1'!H20) -> 0 | F20: =SUM('INVOICE 1'!F20,'INVOICE 1'!I20) -> 0 | G20: 0 | H20: 0 | I20: 0 | J20: 0 | K20: 18950 | L20: 0 | M20: 18950
A21: Other (Travel, Training, etc.) | B21: ='INVOICE 1'!B21 -> 5000 | C21: ='INVOICE 1'!C21 -> 0 | D21: 5000 | E21: =SUM('INVOICE 1'!E21,'INVOICE 1'!H21) -> 0 | F21: =SUM('INVOICE 1'!F21,'INVOICE 1'!I21) -> 0 | G21: 0 | H21: 0 | I21: 0 | J21: 0 | K21: 5000 | L21: 0 | M21: 5000 | N21: ='INVOICE 1'!N21 -> 3rd Advance [enter date]
A22: Indirect Costs | B22: ='INVOICE 1'!B22 -> 134250 | C22: ='INVOICE 1'!C22 -> 0 | D22: =SUM(B22:C22) -> 134250 | E22: =SUM('INVOICE 1'!E22,'INVOICE 1'!H22) -> 0 | F22: =SUM('INVOICE 1'!F22,'INVOICE 1'!I22) -> 0 | G22: 0 | H22: 0 | I22: 0 | J22: 0 | K22: 134250 | L22: 0 | M22: 134250 | N22: ='INVOICE 1'!N22 -> 0
A23: TOTAL | B23: =SUM(B15:B22) -> 3000000 | C23: 0 | D23: 3000000 | E23: 0 | F23: 0 | G23: 0 | H23: 0 | I23: 0 | J23: 0 | K23: 3000000 | L23: 0 | M23: 3000000 | N23: =SUM(N16+N19+N22) -> 1000000
A25: Project Income | C25: Income reported to date | D25: ='INVOICE 1'!D25+I25 -> 0 | F25: Prior allocated income | G25: 0 | H25: This Period | I25: 0 | L25: Unallocated income balance | M25: =D25-G25 -> 0
C27: Grant funds expended to date: | D27: =SUM(E23,H23) -> 0 | G27: Grant funds claimed this period: | H27: =H23 -> 0 | L27: Percent of total disbursed
G28: Advance Disbursement Balance: | H28: =N23-D27 -> 1000000 | L28: funds expended to date: | N28: =D27/N23 -> 0
D32: Expenditure Descriptions - Units / $ Amounts | L32: Comments
A33: Salaries & Benefits | B33: Grant Funds | C33: =H15 -> 0 | D33: N/A | L33: Funds not Received
B34: Project Income | C34: =I15 -> 0 | D34: N/A
A35: Services & Supplies | B35: Grant Funds | C35: =H16 -> 0
B36: Project Income | C36: =I16 -> 0
A37: Professional Services | B37: Grant Funds | C37: =H17 -> 0
B38: Project Income | C38: =I17 -> 0
A39: NGO Subcontracts | B39: Grant Funds | C39: =H18 -> 0
B40: Project Income | C40: =I18 -> 0
A41: Equipment / Fixed Assets | B41: Grant Funds | C41: =H19 -> 0 | L41: Funds not Received
B42: Project Income | C42: =I19 -> 0
A43: Data Collection & Progress Reporting | B43: Grant Funds | C43: =H20 -> 0 | D43: N/A | L43: Funds not Received
B44: Project Income | C44: =I20 -> 0 | D44: N/A
A45: Other (Travel, Training, etc.) | B45: Grant Funds | C45: =H21 -> 0 | D45: N/A | L45: Funds not Received
B46: Project Income | C46: =I21 -> 0 | D46: N/A
A47: Indirect Costs | B47: Grant Funds | C47: =H22 -> 0 | D47: N/A | L47: Funds not Received
B48: Project Income | C48: =I22 -> 0 | D48: N/A
A49: Project Income Earned | C49: =I25 -> 0
A50: PERSON PREPARING REPORT | E50: AUTHORIZED FINANCIAL OFFICER | L50: BSCC Supplier Data - Internal Use Only
E51: By checking the box below, I hereby certify that I am the authorized financial officer of the herein named agency. I further certify that I have not violated any of the provisions of Section 1090 of the Government Code in incurring the expenditures reported in this invoice, nor in any other way; that Sections 1090 through 1096 of the Government Code will not be violated in any way in the expenditure of funds pursuant to this invoice; that statement of funds above is true, correct, and in accordance with program provisions in all respects; and that all expenditures submitted after the expiration date of this contract are for the purpose of substantiating obligations legally incurred during the contract period. Furthermore, by submitting this invoice, I acknowledge that it must adhere to all of the requirements in the BSCC Grant Administration Guide, including any updates to the Guide during the term of the grant agreement.
A52: Sharon Green, CEO | L52: ='INVOICE 1'!L52:N52 -> 146536
A53: Name, Title | L53: Supplier ID
A54: 760-887-1909 | L54: ='INVOICE 1'!L54:N54 -> VICTORVALL-020
A55: Phone | L55: Supplier Name
A56: sgreen@vvfrc.com | L56: ='INVOICE 1'!L56:N56 -> P.O. Box 1248
A57: Email | L57: Address Line 1
A58: 10/5/2020 | L58: ='INVOICE 1'!L58:N58 -> Victorville, CA 92393
A59: Date | L59: Address Line 2
E61: MaryAnn Cross-McKinney, CFO
E62: Name, Title
E63: 951-422-1711
E64: Phone
E65: 2020-11-19
E66: Date
A68: BSCC USE ONLY
A69: Date Received: | C69: 2021-02-04 | G69: Approved By: | I69: Tanya Hill | M69: Date: | N69: 2021-08-17
I70: BSCC Field Representative

Sheet INVOICE 3
A1: STATE OF CALIFORNIA | L1: Purchase Authority: 5227
A2: BOARD OF STATE AND COMMUNITY CORRECTIONS | L2: ='INVOICE 2'!L2:N2 -> Purchase Order: 2928
A3: Financial Invoice - Form BSCC 201 (Revised 06/2020)
A5: Program: | B5: Adult Reentry Grant | K5: Please Note: The California State Controller's Office will send all checks directly to the address listed in the "BSCC Supplier Data" section at the bottom of this invoice.
A7: Grantee: | B7: ='INVOICE 2'!B7 -> Victor Valley Family Resource Center | F7: Project Title: | G7: ='INVOICE 2'!G7:I7 -> RA
A9: Contract #: | B9: ='INVOICE 2'!B9 -> BSCC 430-19 | D9: Term: | E9: 2019-08-01 | F9: TO | G9: 2023-02-28 | L9: Invoicing Frequency | M9: Quarterly
A11: Invoice #: | B11: 3 | D11: Reporting Period: | E11: 2020-01-01 | F11: TO | G11: 2020-03-31 | H11: Due: | I11: 2020-05-15 | L11: Final Invoice (Y/N): | M11: No
A13: Line Items | B13: Budget | E13: Prior Expenditures | H13: This Reporting Period | K13: Balance | N13: Advance Disbursements
B14: Grant Funds | C14: Project Income | D14: TOTAL | E14: Grant Funds | F14: Project Income | G14: TOTAL | H14: Grant Funds | I14: Project Income | J14: TOTAL | K14: Grant Funds | L14: Project Income | M14: TOTAL
A15: Salaries & Benefits | B15: ='INVOICE 2'!B15 -> 684800 | C15: ='INVOICE 2'!C15 -> 0 | D15: =SUM(B15:C15) -> 684800 | E15: =SUM('INVOICE 2'!E15,'INVOICE 2'!H15) -> 0 | F15: =SUM('INVOICE 2'!F15,'INVOICE 2'!I15) -> 0 | G15: =SUM(E15:F15) -> 0 | H15: 0 | I15: 0 | J15: =SUM(H15:I15) -> 0 | K15: =B15-E15-H15 -> 684800 | L15: 0 | M15: =SUM(K15:L15) -> 684800 | N15: ='INVOICE 2'!N15 -> 1st Advance [3/6/20]
A16: Services & Supplies | B16: ='INVOICE 2'!B16 -> 2150000 | C16: ='INVOICE 2'!C16 -> 0 | D16: 2150000 | E16: =SUM('INVOICE 2'!E16,'INVOICE 2'!H16) -> 0 | F16: =SUM('INVOICE 2'!F16,'INVOICE 2'!I16) -> 0 | G16: =SUM(E16:F16) -> 0 | H16: 0 | I16: 0 | J16: 0 | K16: 2150000 | L16: 0 | M16: 2150000 | N16: ='INVOICE 2'!N16 -> 1000000
A17: Professional Services | B17: ='INVOICE 2'!B17 -> 0 | C17: ='INVOICE 2'!C17 -> 0 | D17: 0 | E17: =SUM('INVOICE 2'!E17,'INVOICE 2'!H17) -> 0 | F17: =SUM('INVOICE 2'!F17,'INVOICE 2'!I17) -> 0 | G17: =SUM(E17:F17) -> 0 | H17: 0 | I17: 0 | J17: 0 | K17: 0 | L17: 0 | M17: 0
A18: NGO Subcontracts | B18: ='INVOICE 2'!B18 -> 0 | C18: ='INVOICE 2'!C18 -> 0 | D18: 0 | E18: =SUM('INVOICE 2'!E18,'INVOICE 2'!H18) -> 0 | F18: =SUM('INVOICE 2'!F18,'INVOICE 2'!I18) -> 0 | G18: 0 | H18: 0 | I18: 0 | J18: 0 | K18: 0 | L18: 0 | M18: 0 | N18: ='INVOICE 2'!N18 -> 2nd Advance [enter date]
A19: Equipment / Fixed Assets | B19: ='INVOICE 2'!B19 -> 7000 | C19: ='INVOICE 2'!C19 -> 0 | D19: 7000 | E19: =SUM('INVOICE 2'!E19,'INVOICE 2'!H19) -> 0 | F19: =SUM('INVOICE 2'!F19,'INVOICE 2'!I19) -> 0 | G19: 0 | H19: 0 | I19: 0 | J19: 0 | K19: 7000 | L19: 0 | M19: 7000 | N19: ='INVOICE 2'!N19 -> 0
A20: Data Collection & Progress Reporting | B20: ='INVOICE 2'!B20 -> 18950 | C20: ='INVOICE 2'!C20 -> 0 | D20: 18950 | E20: =SUM('INVOICE 2'!E20,'INVOICE 2'!H20) -> 0 | F20: =SUM('INVOICE 2'!F20,'INVOICE 2'!I20) -> 0 | G20: 0 | H20: 0 | I20: 0 | J20: 0 | K20: 18950 | L20: 0 | M20: 18950
A21: Other (Travel, Training, etc.) | B21: ='INVOICE 2'!B21 -> 5000 | C21: ='INVOICE 2'!C21 -> 0 | D21: 5000 | E21: =SUM('INVOICE 2'!E21,'INVOICE 2'!H21) -> 0 | F21: =SUM('INVOICE 2'!F21,'INVOICE 2'!I21) -> 0 | G21: 0 | H21: 0 | I21: 0 | J21: 0 | K21: 5000 | L21: 0 | M21: 5000 | N21: ='INVOICE 2'!N21 -> 3rd Advance [enter date]
A22: Indirect Costs | B22: ='INVOICE 2'!B22 -> 134250 | C22: ='INVOICE 2'!C22 -> 0 | D22: =SUM(B22:C22) -> 134250 | E22: =SUM('INVOICE 2'!E22,'INVOICE 2'!H22) -> 0 | F22: =SUM('INVOICE 2'!F22,'INVOICE 2'!I22) -> 0 | G22: 0 | H22: 0 | I22: 0 | J22: 0 | K22: 134250 | L22: 0 | M22: 134250 | N22: ='INVOICE 2'!N22 -> 0
A23: TOTAL | B23: =SUM(B15:B22) -> 3000000 | C23: 0 | D23: 3000000 | E23: 0 | F23: 0 | G23: 0 | H23: 0 | I23: 0 | J23: 0 | K23: 3000000 | L23: 0 | M23: 3000000 | N23: =SUM(N16+N19+N22) -> 1000000
A25: Project Income | C25: Income reported to date | D25: ='INVOICE 2'!D25+I25 -> 0 | F25: Prior allocated income | G25: 0 | H25: This Period | I25: 0 | L25: Unallocated income balance | M25: =D25-G25 -> 0
C27: Grant funds expended to date: | D27: =SUM(E23,H23) -> 0 | G27: Grant funds claimed this period: | H27: =H23 -> 0 | L27: Percent of total disbursed
G28: Advance Disbursement Balance: | H28: =N23-D27 -> 1000000 | L28: funds expended to date: | N28: =D27/N23 -> 0
D32: Expenditure Descriptions - Units / $ Amounts | L32: Comments
A33: Salaries & Benefits | B33: Grant Funds | C33: =H15 -> 0 | D33: N/A | L33: Funds not Received
B34: Project Income | C34: =I15 -> 0 | D34: N/A | L34: Funds not Received
A35: Services & Supplies | B35: Grant Funds | C35: =H16 -> 0 | D35: N/A | L35: Funds not Received
B36: Project Income | C36: =I16 -> 0 | D36: N/A | L36: Funds not Received
A37: Professional Services | B37: Grant Funds | C37: =H17 -> 0
B38: Project Income | C38: =I17 -> 0
A39: NGO Subcontracts | B39: Grant Funds | C39: =H18 -> 0
B40: Project Income | C40: =I18 -> 0
A41: Equipment / Fixed Assets | B41: Grant Funds | C41: =H19 -> 0 | D41: N/A | L41: Funds not Received
B42: Project Income | C42: =I19 -> 0 | D42: N/A | L42: Funds not Received
A43: Data Collection & Progress Reporting | B43: Grant Funds | C43: =H20 -> 0 | D43: N/A | L43: Funds not Received
B44: Project Income | C44: =I20 -> 0 | D44: N/A | L44: Funds not Received
A45: Other (Travel, Training, etc.) | B45: Grant Funds | C45: =H21 -> 0 | D45: N/A | L45: Funds not Received
B46: Project Income | C46: =I21 -> 0 | D46: N/A | L46: Funds not Received
A47: Indirect Costs | B47: Grant Funds | C47: =H22 -> 0 | D47: N/A | L47: Funds not Received
B48: Project Income | C48: =I22 -> 0 | D48: N/A | L48: Funds not Received
A49: Project Income Earned | C49: =I25 -> 0
A50: PERSON PREPARING REPORT | E50: AUTHORIZED FINANCIAL OFFICER | L50: BSCC Supplier Data - Internal Use Only
E51: By checking the box below, I hereby certify that I am the authorized financial officer of the herein named agency. I further certify that I have not violated any of the provisions of Section 1090 of the Government Code in incurring the expenditures reported in this invoice, nor in any other way; that Sections 1090 through 1096 of the Government Code will not be violated in any way in the expenditure of funds pursuant to this invoice; that statement of funds above is true, correct, and in accordance with program provisions in all respects; and that all expenditures submitted after the expiration date of this contract are for the purpose of substantiating obligations legally incurred during the contract period. Furthermore, by submitting this invoice, I acknowledge that it must adhere to all of the requirements in the BSCC Grant Administration Guide, including any updates to the Guide during the term of the grant agreement.
A52: Sharon Green, CEO | L52: ='INVOICE 2'!L52:N52 -> 146536
A53: Name, Title | L53: Supplier ID
A54: 760-887-1909 | L54: ='INVOICE 2'!L54:N54 -> VICTORVALL-020
A55: Phone | L55: Supplier Name
A56: Sharon Green, CEO | L56: ='INVOICE 2'!L56:N56 -> P.O. Box 1248
A57: Email | L57: Address Line 1
A58: 2020-11-19 | L58: ='INVOICE 2'!L58:N58 -> Victorville, CA 92393
A59: Date | L59: Address Line 2
E61: MaryAnn Cross-McKinney
E62: Name, Title
E63: 951-422-1711
E64: Phone
E65: 2020-11-19
E66: Date
A68: BSCC USE ONLY
A69: Date Received: | C69: 2021-02-04 | G69: Approved By: | I69: Tanya Hill | M69: Date: | N69: 2021-08-17
I70: BSCC Field Representative

Sheet INVOICE 4
A1: STATE OF CALIFORNIA | L1: Purchase Authority: 5227
A2: BOARD OF STATE AND COMMUNITY CORRECTIONS | L2: ='INVOICE 3'!L2:N2 -> Purchase Order: 2928
A3: Financial Invoice - Form BSCC 201 (Revised 06/2020)
A5: Program: | B5: Adult Reentry Grant | K5: Please Note: The California State Controller's Office will send all checks directly to the address listed in the "BSCC Supplier Data" section at the bottom of this invoice.
A7: Grantee: | B7: ='INVOICE 3'!B7 -> Victor Valley Family Resource Center | F7: Project Title: | G7: ='INVOICE 3'!G7:I7 -> RA
A9: Contract #: | B9: ='INVOICE 3'!B9 -> BSCC 430-19 | D9: Term: | E9: 2019-08-01 | F9: TO | G9: 2023-02-28 | L9: Invoicing Frequency | M9: Quarterly
A11: Invoice #: | B11: 4 | D11: Reporting Period: | E11: 2020-04-01 | F11: TO | G11: 2020-06-30 | H11: Due: | I11: 2020-08-14 | L11: Final Invoice (Y/N): | M11: No
A13: Line Items | B13: Budget | E13: Prior Expenditures | H13: This Reporting Period | K13: Balance | N13: Advance Disbursements
B14: Grant Funds | C14: Project Income | D14: TOTAL | E14: Grant Funds | F14: Project Income | G14: TOTAL | H14: Grant Funds | I14: Project Income | J14: TOTAL | K14: Grant Funds | L14: Project Income | M14: TOTAL
A15: Salaries & Benefits | B15: ='INVOICE 3'!B15 -> 684800 | C15: ='INVOICE 3'!C15 -> 0 | D15: =SUM(B15:C15) -> 684800 | E15: =SUM('INVOICE 3'!E15,'INVOICE 3'!H15) -> 0 | F15: =SUM('INVOICE 3'!F15,'INVOICE 3'!I15) -> 0 | G15: =SUM(E15:F15) -> 0 | H15: 0 | I15: 0 | J15: =SUM(H15:I15) -> 0 | K15: =B15-E15-H15 -> 684800 | L15: 0 | M15: =SUM(K15:L15) -> 684800 | N15: ='INVOICE 3'!N15 -> 1st Advance [3/6/20]
A16: Services & Supplies | B16: ='INVOICE 3'!B16 -> 2150000 | C16: ='INVOICE 3'!C16 -> 0 | D16: 2150000 | E16: =SUM('INVOICE 3'!E16,'INVOICE 3'!H16) -> 0 | F16: =SUM('INVOICE 3'!F16,'INVOICE 3'!I16) -> 0 | G16: =SUM(E16:F16) -> 0 | H16: 0 | I16: 0 | J16: 0 | K16: 2150000 | L16: 0 | M16: 2150000 | N16: ='INVOICE 3'!N16 -> 1000000
A17: Professional Services | B17: ='INVOICE 3'!B17 -> 0 | C17: ='INVOICE 3'!C17 -> 0 | D17: 0 | E17: =SUM('INVOICE 3'!E17,'INVOICE 3'!H17) -> 0 | F17: =SUM('INVOICE 3'!F17,'INVOICE 3'!I17) -> 0 | G17: =SUM(E17:F17) -> 0 | H17: 0 | I17: 0 | J17: 0 | K17: 0 | L17: 0 | M17: 0
A18: NGO Subcontracts | B18: ='INVOICE 3'!B18 -> 0 | C18: ='INVOICE 3'!C18 -> 0 | D18: 0 | E18: =SUM('INVOICE 3'!E18,'INVOICE 3'!H18) -> 0 | F18: =SUM('INVOICE 3'!F18,'INVOICE 3'!I18) -> 0 | G18: 0 | H18: 0 | I18: 0 | J18: 0 | K18: 0 | L18: 0 | M18: 0 | N18: ='INVOICE 3'!N18 -> 2nd Advance [enter date]
A19: Equipment / Fixed Assets | B19: ='INVOICE 3'!B19 -> 7000 | C19: ='INVOICE 3'!C19 -> 0 | D19: 7000 | E19: =SUM('INVOICE 3'!E19,'INVOICE 3'!H19) -> 0 | F19: =SUM('INVOICE 3'!F19,'INVOICE 3'!I19) -> 0 | G19: 0 | H19: 0 | I19: 0 | J19: 0 | K19: 7000 | L19: 0 | M19: 7000 | N19: ='INVOICE 3'!N19 -> 0
A20: Data Collection & Progress Reporting | B20: ='INVOICE 3'!B20 -> 18950 | C20: ='INVOICE 3'!C20 -> 0 | D20: 18950 | E20: =SUM('INVOICE 3'!E20,'INVOICE 3'!H20) -> 0 | F20: =SUM('INVOICE 3'!F20,'INVOICE 3'!I20) -> 0 | G20: 0 | H20: 0 | I20: 0 | J20: 0 | K20: 18950 | L20: 0 | M20: 18950
A21: Other (Travel, Training, etc.) | B21: ='INVOICE 3'!B21 -> 5000 | C21: ='INVOICE 3'!C21 -> 0 | D21: 5000 | E21: =SUM('INVOICE 3'!E21,'INVOICE 3'!H21) -> 0 | F21: =SUM('INVOICE 3'!F21,'INVOICE 3'!I21) -> 0 | G21: 0 | H21: 0 | I21: 0 | J21: 0 | K21: 5000 | L21: 0 | M21: 5000 | N21: ='INVOICE 3'!N21 -> 3rd Advance [enter date]
A22: Indirect Costs | B22: ='INVOICE 3'!B22 -> 134250 | C22: ='INVOICE 3'!C22 -> 0 | D22: =SUM(B22:C22) -> 134250 | E22: =SUM('INVOICE 3'!E22,'INVOICE 3'!H22) -> 0 | F22: =SUM('INVOICE 3'!F22,'INVOICE 3'!I22) -> 0 | G22: 0 | H22: 0 | I22: 0 | J22: 0 | K22: 134250 | L22: 0 | M22: 134250 | N22: ='INVOICE 3'!N22 -> 0
A23: TOTAL | B23: =SUM(B15:B22) -> 3000000 | C23: 0 | D23: 3000000 | E23: 0 | F23: 0 | G23: 0 | H23: 0 | I23: 0 | J23: 0 | K23: 3000000 | L23: 0 | M23: 3000000 | N23: =SUM(N16+N19+N22) -> 1000000
A25: Project Income | C25: Income reported to date | D25: ='INVOICE 3'!D25+I25 -> 0 | F25: Prior allocated income | G25: 0 | H25: This Period | I25: 0 | L25: Unallocated income balance | M25: =D25-G25 -> 0
C27: Grant funds expended to date: | D27: =SUM(E23,H23) -> 0 | G27: Grant funds claimed this period: | H27: =H23 -> 0 | L27: Percent of total disbursed
G28: Advance Disbursement Balance: | H28: =N23-D27 -> 1000000 | L28: funds expended to date: | N28: =D27/N23 -> 0
D32: Expenditure Descriptions - Units / $ Amounts | L32: Comments
A33: Salaries & Benefits | B33: Grant Funds | C33: =H15 -> 0
B34: Project Income | C34: =I15 -> 0
A35: Services & Supplies | B35: Grant Funds | C35: =H16 -> 0
B36: Project Income | C36: =I16 -> 0
A37: Professional Services | B37: Grant Funds | C37: =H17 -> 0
B38: Project Income | C38: =I17 -> 0
A39: NGO Subcontracts | B39: Grant Funds | C39: =H18 -> 0
B40: Project Income | C40: =I18 -> 0
A41: Equipment / Fixed Assets | B41: Grant Funds | C41: =H19 -> 0
B42: Project Income | C42: =I19 -> 0
A43: Data Collection & Progress Reporting | B43: Grant Funds | C43: =H20 -> 0
B44: Project Income | C44: =I20 -> 0
A45: Other (Travel, Training, etc.) | B45: Grant Funds | C45: =H21 -> 0
B46: Project Income | C46: =I21 -> 0
A47: Indirect Costs | B47: Grant Funds | C47: =H22 -> 0
B48: Project Income | C48: =I22 -> 0
A49: Project Income Earned | C49: =I25 -> 0
A50: PERSON PREPARING REPORT | E50: AUTHORIZED FINANCIAL OFFICER | L50: BSCC Supplier Data - Internal Use Only
E51: By checking the box below, I hereby certify that I am the authorized financial officer of the herein named agency. I further certify that I have not violated any of the provisions of Section 1090 of the Government Code in incurring the expenditures reported in this invoice, nor in any other way; that Sections 1090 through 1096 of the Government Code will not be violated in any way in the expenditure of funds pursuant to this invoice; that statement of funds above is true, correct, and in accordance with program provisions in all respects; and that all expenditures submitted after the expiration date of this contract are for the purpose of substantiating obligations legally incurred during the contract period. Furthermore, by submitting this invoice, I acknowledge that it must adhere to all of the requirements in the BSCC Grant Administration Guide, including any updates to the Guide during the term of the grant agreement.
L52: ='INVOICE 3'!L52:N52 -> 146536
A53: Name, Title | L53: Supplier ID
L54: ='INVOICE 3'!L54:N54 -> VICTORVALL-020
A55: Phone | L55: Supplier Name
L56: ='INVOICE 3'!L56:N56 -> P.O. Box 1248
A57: Email | L57: Address Line 1
L58: ='INVOICE 3'!L58:N58 -> Victorville, CA 92393
A59: Date | L59: Address Line 2
E62: Name, Title
E64: Phone
E66: Date
A68: BSCC USE ONLY
A69: Date Received: | G69: Approved By: | M69: Date:
I70: BSCC Field Representative

Sheet INVOICE 5
A1: STATE OF CALIFORNIA | L1: Purchase Authority: 5227
A2: BOARD OF STATE AND COMMUNITY CORRECTIONS | L2: ='INVOICE 4'!L2:N2 -> Purchase Order: 2928
A3: Financial Invoice - Form BSCC 201 (Revised 06/2020)
A5: Program: | B5: Adult Reentry Grant | K5: Please Note: The California State Controller's Office will send all checks directly to the address listed in the "BSCC Supplier Data" section at the bottom of this invoice.
A7: Grantee: | B7: ='INVOICE 4'!B7 -> Victor Valley Family Resource Center | F7: Project Title: | G7: ='INVOICE 4'!G7:I7 -> RA
A9: Contract #: | B9: ='INVOICE 4'!B9 -> BSCC 430-19 | D9: Term: | E9: 2019-08-01 | F9: TO | G9: 2023-02-28 | L9: Invoicing Frequency | M9: Quarterly
A11: Invoice #: | B11: 5 | D11: Reporting Period: | E11: 2020-07-01 | F11: TO | G11: 2020-09-30 | H11: Due: | I11: 2020-11-16 | L11: Final Invoice (Y/N): | M11: No
A13: Line Items | B13: Budget | E13: Prior Expenditures | H13: This Reporting Period | K13: Balance | N13: Advance Disbursements
B14: Grant Funds | C14: Project Income | D14: TOTAL | E14: Grant Funds | F14: Project Income | G14: TOTAL | H14: Grant Funds | I14: Project Income | J14: TOTAL | K14: Grant Funds | L14: Project Income | M14: TOTAL
A15: Salaries & Benefits | B15: ='INVOICE 4'!B15 -> 684800 | C15: ='INVOICE 4'!C15 -> 0 | D15: =SUM(B15:C15) -> 684800 | E15: =SUM('INVOICE 4'!E15,'INVOICE 4'!H15) -> 0 | F15: =SUM('INVOICE 4'!F15,'INVOICE 4'!I15) -> 0 | G15: =SUM(E15:F15) -> 0 | H15: 0 | I15: 0 | J15: =SUM(H15:I15) -> 0 | K15: =B15-E15-H15 -> 684800 | L15: 0 | M15: =SUM(K15:L15) -> 684800 | N15: ='INVOICE 4'!N15 -> 1st Advance [3/6/20]
A16: Services & Supplies | B16: ='INVOICE 4'!B16 -> 2150000 | C16: ='INVOICE 4'!C16 -> 0 | D16: 2150000 | E16: =SUM('INVOICE 4'!E16,'INVOICE 4'!H16) -> 0 | F16: =SUM('INVOICE 4'!F16,'INVOICE 4'!I16) -> 0 | G16: =SUM(E16:F16) -> 0 | H16: 0 | I16: 0 | J16: 0 | K16: 2150000 | L16: 0 | M16: 2150000 | N16: ='INVOICE 4'!N16 -> 1000000
A17: Professional Services | B17: ='INVOICE 4'!B17 -> 0 | C17: ='INVOICE 4'!C17 -> 0 | D17: 0 | E17: =SUM('INVOICE 4'!E17,'INVOICE 4'!H17) -> 0 | F17: =SUM('INVOICE 4'!F17,'INVOICE 4'!I17) -> 0 | G17: =SUM(E17:F17) -> 0 | H17: 0 | I17: 0 | J17: 0 | K17: 0 | L17: 0 | M17: 0
A18: NGO Subcontracts | B18: ='INVOICE 4'!B18 -> 0 | C18: ='INVOICE 4'!C18 -> 0 | D18: 0 | E18: =SUM('INVOICE 4'!E18,'INVOICE 4'!H18) -> 0 | F18: =SUM('INVOICE 4'!F18,'INVOICE 4'!I18) -> 0 | G18: 0 | H18: 0 | I18: 0 | J18: 0 | K18: 0 | L18: 0 | M18: 0 | N18: ='INVOICE 4'!N18 -> 2nd Advance [enter date]
A19: Equipment / Fixed Assets | B19: ='INVOICE 4'!B19 -> 7000 | C19: ='INVOICE 4'!C19 -> 0 | D19: 7000 | E19: =SUM('INVOICE 4'!E19,'INVOICE 4'!H19) -> 0 | F19: =SUM('INVOICE 4'!F19,'INVOICE 4'!I19) -> 0 | G19: 0 | H19: 0 | I19: 0 | J19: 0 | K19: 7000 | L19: 0 | M19: 7000 | N19: ='INVOICE 4'!N19 -> 0
A20: Data Collection & Progress Reporting | B20: ='INVOICE 4'!B20 -> 18950 | C20: ='INVOICE 4'!C20 -> 0 | D20: 18950 | E20: =SUM('INVOICE 4'!E20,'INVOICE 4'!H20) -> 0 | F20: =SUM('INVOICE 4'!F20,'INVOICE 4'!I20) -> 0 | G20: 0 | H20: 0 | I20: 0 | J20: 0 | K20: 18950 | L20: 0 | M20: 18950
A21: Other (Travel, Training, etc.) | B21: ='INVOICE 4'!B21 -> 5000 | C21: ='INVOICE 4'!C21 -> 0 | D21: 5000 | E21: =SUM('INVOICE 4'!E21,'INVOICE 4'!H21) -> 0 | F21: =SUM('INVOICE 4'!F21,'INVOICE 4'!I21) -> 0 | G21: 0 | H21: 0 | I21: 0 | J21: 0 | K21: 5000 | L21: 0 | M21: 5000 | N21: ='INVOICE 4'!N21 -> 3rd Advance [enter date]
A22: Indirect Costs | B22: ='INVOICE 4'!B22 -> 134250 | C22: ='INVOICE 4'!C22 -> 0 | D22: =SUM(B22:C22) -> 134250 | E22: =SUM('INVOICE 4'!E22,'INVOICE 4'!H22) -> 0 | F22: =SUM('INVOICE 4'!F22,'INVOICE 4'!I22) -> 0 | G22: 0 | H22: 0 | I22: 0 | J22: 0 | K22: 134250 | L22: 0 | M22: 134250 | N22: ='INVOICE 4'!N22 -> 0
A23: TOTAL | B23: =SUM(B15:B22) -> 3000000 | C23: 0 | D23: 3000000 | E23: 0 | F23: 0 | G23: 0 | H23: 0 | I23: 0 | J23: 0 | K23: 3000000 | L23: 0 | M23: 3000000 | N23: =SUM(N16+N19+N22) -> 1000000
A25: Project Income | C25: Income reported to date | D25: ='INVOICE 4'!D25+I25 -> 0 | F25: Prior allocated income | G25: 0 | H25: This Period | I25: 0 | L25: Unallocated income balance | M25: =D25-G25 -> 0
C27: Grant funds expended to date: | D27: =SUM(E23,H23) -> 0 | G27: Grant funds claimed this period: | H27: =H23 -> 0 | L27: Percent of total disbursed
G28: Advance Disbursement Balance: | H28: =N23-D27 -> 1000000 | L28: funds expended to date: | N28: =D27/N23 -> 0
D32: Expenditure Descriptions - Units / $ Amounts | L32: Comments
A33: Salaries & Benefits | B33: Grant Funds | C33: =H15 -> 0
B34: Project Income | C34: =I15 -> 0
A35: Services & Supplies | B35: Grant Funds | C35: =H16 -> 0
B36: Project Income | C36: =I16 -> 0
A37: Professional Services | B37: Grant Funds | C37: =H17 -> 0
B38: Project Income | C38: =I17 -> 0
A39: NGO Subcontracts | B39: Grant Funds | C39: =H18 -> 0
B40: Project Income | C40: =I18 -> 0
A41: Equipment / Fixed Assets | B41: Grant Funds | C41: =H19 -> 0
B42: Project Income | C42: =I19 -> 0
A43: Data Collection & Progress Reporting | B43: Grant Funds | C43: =H20 -> 0
B44: Project Income | C44: =I20 -> 0
A45: Other (Travel, Training, etc.) | B45: Grant Funds | C45: =H21 -> 0
B46: Project Income | C46: =I21 -> 0
A47: Indirect Costs | B47: Grant Funds | C47: =H22 -> 0
B48: Project Income | C48: =I22 -> 0
A49: Project Income Earned | C49: =I25 -> 0
A50: PERSON PREPARING REPORT | E50: AUTHORIZED FINANCIAL OFFICER | L50: BSCC Supplier Data - Internal Use Only
E51: By checking the box below, I hereby certify that I am the authorized financial officer of the herein named agency. I further certify that I have not violated any of the provisions of Section 1090 of the Government Code in incurring the expenditures reported in this invoice, nor in any other way; that Sections 1090 through 1096 of the Government Code will not be violated in any way in the expenditure of funds pursuant to this invoice; that statement of funds above is true, correct, and in accordance with program provisions in all respects; and that all expenditures submitted after the expiration date of this contract are for the purpose of substantiating obligations legally incurred during the contract period. Furthermore, by submitting this invoice, I acknowledge that it must adhere to all of the requirements in the BSCC Grant Administration Guide, including any updates to the Guide during the term of the grant agreement.
L52: ='INVOICE 4'!L52:N52 -> 146536
A53: Name, Title | L53: Supplier ID
L54: ='INVOICE 4'!L54:N54 -> VICTORVALL-020
A55: Phone | L55: Supplier Name
L56: ='INVOICE 4'!L56:N56 -> P.O. Box 1248
A57: Email | L57: Address Line 1
L58: ='INVOICE 4'!L58:N58 -> Victorville, CA 92393
A59: Date | L59: Address Line 2
E62: Name, Title
E64: Phone
E66: Date
A68: BSCC USE ONLY
A69: Date Received: | G69: Approved By: | M69: Date:
I70: BSCC Field Representative

Sheet INVOICE 6
A1: STATE OF CALIFORNIA | L1: Purchase Authority: 5227
A2: BOARD OF STATE AND COMMUNITY CORRECTIONS | L2: ='INVOICE 5'!L2:N2 -> Purchase Order: 2928
A3: Financial Invoice - Form BSCC 201 (Revised 06/2020)
A5: Program: | B5: Adult Reentry Grant | K5: Please Note: The California State Controller's Office will send all checks directly to the address listed in the "BSCC Supplier Data" section at the bottom of this invoice.
A7: Grantee: | B7: ='INVOICE 5'!B7 -> Victor Valley Family Resource Center | F7: Project Title: | G7: ='INVOICE 5'!G7:I7 -> RA
A9: Contract #: | B9: ='INVOICE 5'!B9 -> BSCC 430-19 | D9: Term: | E9: 2019-08-01 | F9: TO | G9: 2023-02-28 | L9: Invoicing Frequency | M9: Quarterly
A11: Invoice #: | B11: 6 | D11: Reporting Period: | E11: 2020-10-01 | F11: TO | G11: 2020-12-31 | H11: Due: | I11: 2021-02-15 | L11: Final Invoice (Y/N): | M11: No
A13: Line Items | B13: Budget | E13: Prior Expenditures | H13: This Reporting Period | K13: Balance | N13: Advance Disbursements
B14: Grant Funds | C14: Project Income | D14: TOTAL | E14: Grant Funds | F14: Project Income | G14: TOTAL | H14: Grant Funds | I14: Project Income | J14: TOTAL | K14: Grant Funds | L14: Project Income | M14: TOTAL
A15: Salaries & Benefits | B15: ='INVOICE 5'!B15 -> 684800 | C15: ='INVOICE 5'!C15 -> 0 | D15: =SUM(B15:C15) -> 684800 | E15: =SUM('INVOICE 5'!E15,'INVOICE 5'!H15) -> 0 | F15: =SUM('INVOICE 5'!F15,'INVOICE 5'!I15) -> 0 | G15: =SUM(E15:F15) -> 0 | H15: 0 | I15: 0 | J15: =SUM(H15:I15) -> 0 | K15: =B15-E15-H15 -> 684800 | L15: 0 | M15: =SUM(K15:L15) -> 684800 | N15: ='INVOICE 5'!N15 -> 1st Advance [3/6/20]
A16: Services & Supplies | B16: ='INVOICE 5'!B16 -> 2150000 | C16: ='INVOICE 5'!C16 -> 0 | D16: 2150000 | E16: =SUM('INVOICE 5'!E16,'INVOICE 5'!H16) -> 0 | F16: =SUM('INVOICE 5'!F16,'INVOICE 5'!I16) -> 0 | G16: =SUM(E16:F16) -> 0 | H16: 0 | I16: 0 | J16: 0 | K16: 2150000 | L16: 0 | M16: 2150000 | N16: ='INVOICE 5'!N16 -> 1000000
A17: Professional Services | B17: ='INVOICE 5'!B17 -> 0 | C17: ='INVOICE 5'!C17 -> 0 | D17: 0 | E17: =SUM('INVOICE 5'!E17,'INVOICE 5'!H17) -> 0 | F17: =SUM('INVOICE 5'!F17,'INVOICE 5'!I17) -> 0 | G17: =SUM(E17:F17) -> 0 | H17: 0 | I17: 0 | J17: 0 | K17: 0 | L17: 0 | M17: 0
A18: NGO Subcontracts | B18: ='INVOICE 5'!B18 -> 0 | C18: ='INVOICE 5'!C18 -> 0 | D18: 0 | E18: =SUM('INVOICE 5'!E18,'INVOICE 5'!H18) -> 0 | F18: =SUM('INVOICE 5'!F18,'INVOICE 5'!I18) -> 0 | G18: 0 | H18: 0 | I18: 0 | J18: 0 | K18: 0 | L18: 0 | M18: 0 | N18: ='INVOICE 5'!N18 -> 2nd Advance [enter date]
A19: Equipment / Fixed Assets | B19: ='INVOICE 5'!B19 -> 7000 | C19: ='INVOICE 5'!C19 -> 0 | D19: 7000 | E19: =SUM('INVOICE 5'!E19,'INVOICE 5'!H19) -> 0 | F19: =SUM('INVOICE 5'!F19,'INVOICE 5'!I19) -> 0 | G19: 0 | H19: 0 | I19: 0 | J19: 0 | K19: 7000 | L19: 0 | M19: 7000 | N19: ='INVOICE 5'!N19 -> 0
A20: Data Collection & Progress Reporting | B20: ='INVOICE 5'!B20 -> 18950 | C20: ='INVOICE 5'!C20 -> 0 | D20: 18950 | E20: =SUM('INVOICE 5'!E20,'INVOICE 5'!H20) -> 0 | F20: =SUM('INVOICE 5'!F20,'INVOICE 5'!I20) -> 0 | G20: 0 | H20: 0 | I20: 0 | J20: 0 | K20: 18950 | L20: 0 | M20: 18950
A21: Other (Travel, Training, etc.) | B21: ='INVOICE 5'!B21 -> 5000 | C21: ='INVOICE 5'!C21 -> 0 | D21: 5000 | E21: =SUM('INVOICE 5'!E21,'INVOICE 5'!H21) -> 0 | F21: =SUM('INVOICE 5'!F21,'INVOICE 5'!I21) -> 0 | G21: 0 | H21: 0 | I21: 0 | J21: 0 | K21: 5000 | L21: 0 | M21: 5000 | N21: ='INVOICE 5'!N21 -> 3rd Advance [enter date]
A22: Indirect Costs | B22: ='INVOICE 5'!B22 -> 134250 | C22: ='INVOICE 5'!C22 -> 0 | D22: =SUM(B22:C22) -> 134250 | E22: =SUM('INVOICE 5'!E22,'INVOICE 5'!H22) -> 0 | F22: =SUM('INVOICE 5'!F22,'INVOICE 5'!I22) -> 0 | G22: 0 | H22: 0 | I22: 0 | J22: 0 | K22: 134250 | L22: 0 | M22: 134250 | N22: ='INVOICE 5'!N22 -> 0
A23: TOTAL | B23: =SUM(B15:B22) -> 3000000 | C23: 0 | D23: 3000000 | E23: 0 | F23: 0 | G23: 0 | H23: 0 | I23: 0 | J23: 0 | K23: 3000000 | L23: 0 | M23: 3000000 | N23: =SUM(N16+N19+N22) -> 1000000
A25: Project Income | C25: Income reported to date | D25: ='INVOICE 5'!D25+I25 -> 0 | F25: Prior allocated income | G25: 0 | H25: This Period | I25: 0 | L25: Unallocated income balance | M25: =D25-G25 -> 0
C27: Grant funds expended to date: | D27: =SUM(E23,H23) -> 0 | G27: Grant funds claimed this period: | H27: =H23 -> 0 | L27: Percent of total disbursed
G28: Advance Disbursement Balance: | H28: =N23-D27 -> 1000000 | L28: funds expended to date: | N28: =D27/N23 -> 0
D32: Expenditure Descriptions - Units / $ Amounts | L32: Comments
A33: Salaries & Benefits | B33: Grant Funds | C33: =H15 -> 0
B34: Project Income | C34: =I15 -> 0
A35: Services & Supplies | B35: Grant Funds | C35: =H16 -> 0
B36: Project Income | C36: =I16 -> 0
A37: Professional Services | B37: Grant Funds | C37: =H17 -> 0
B38: Project Income | C38: =I17 -> 0
A39: NGO Subcontracts | B39: Grant Funds | C39: =H18 -> 0
B40: Project Income | C40: =I18 -> 0
A41: Equipment / Fixed Assets | B41: Grant Funds | C41: =H19 -> 0
B42: Project Income | C42: =I19 -> 0
A43: Data Collection & Progress Reporting | B43: Grant Funds | C43: =H20 -> 0
B44: Project Income | C44: =I20 -> 0
A45: Other (Travel, Training, etc.) | B45: Grant Funds | C45: =H21 -> 0
B46: Project Income | C46: =I21 -> 0
A47: Indirect Costs | B47: Grant Funds | C47: =H22 -> 0
B48: Project Income | C48: =I22 -> 0
A49: Project Income Earned | C49: =I25 -> 0
A50: PERSON PREPARING REPORT | E50: AUTHORIZED FINANCIAL OFFICER | L50: BSCC Supplier Data - Internal Use Only
E51: By checking the box below, I hereby certify that I am the authorized financial officer of the herein named agency. I further certify that I have not violated any of the provisions of Section 1090 of the Government Code in incurring the expenditures reported in this invoice, nor in any other way; that Sections 1090 through 1096 of the Government Code will not be violated in any way in the expenditure of funds pursuant to this invoice; that statement of funds above is true, correct, and in accordance with program provisions in all respects; and that all expenditures submitted after the expiration date of this contract are for the purpose of substantiating obligations legally incurred during the contract period. Furthermore, by submitting this invoice, I acknowledge that it must adhere to all of the requirements in the BSCC Grant Administration Guide, including any updates to the Guide during the term of the grant agreement.
L52: ='INVOICE 5'!L52:N52 -> 146536
A53: Name, Title | L53: Supplier ID
L54: ='INVOICE 5'!L54:N54 -> VICTORVALL-020
A55: Phone | L55: Supplier Name
L56: ='INVOICE 5'!L56:N56 -> P.O. Box 1248
A57: Email | L57: Address Line 1
L58: ='INVOICE 5'!L58:N58 -> Victorville, CA 92393
A59: Date | L59: Address Line 2
E62: Name, Title
E64: Phone
E66: Date
A68: BSCC USE ONLY
A69: Date Received: | G69: Approved By: | M69: Date:
I70: BSCC Field Representative

Sheet INVOICE 7
A1: STATE OF CALIFORNIA | L1: Purchase Authority: 5227
A2: BOARD OF STATE AND COMMUNITY CORRECTIONS | L2: ='INVOICE 6'!L2:N2 -> Purchase Order: 2928
A3: Financial Invoice - Form BSCC 201 (Revised 06/2020)
A5: Program: | B5: Adult Reentry Grant | K5: Please Note: The California State Controller's Office will send all checks directly to the address listed in the "BSCC Supplier Data" section at the bottom of this invoice.
A7: Grantee: | B7: ='INVOICE 6'!B7 -> Victor Valley Family Resource Center | F7: Project Title: | G7: ='INVOICE 6'!G7:I7 -> RA
A9: Contract #: | B9: ='INVOICE 6'!B9 -> BSCC 430-19 | D9: Term: | E9: 2019-08-01 | F9: TO | G9: 2023-02-28 | L9: Invoicing Frequency | M9: Quarterly
A11: Invoice #: | B11: 7 | D11: Reporting Period: | E11: 2021-01-01 | F11: TO | G11: 2021-03-31 | H11: Due: | I11: 2021-05-14 | L11: Final Invoice (Y/N): | M11: No
A13: Line Items | B13: Budget | E13: Prior Expenditures | H13: This Reporting Period | K13: Balance | N13: Advance Disbursements
B14: Grant Funds | C14: Project Income | D14: TOTAL | E14: Grant Funds | F14: Project Income | G14: TOTAL | H14: Grant Funds | I14: Project Income | J14: TOTAL | K14: Grant Funds | L14: Project Income | M14: TOTAL
A15: Salaries & Benefits | B15: ='INVOICE 6'!B15 -> 684800 | C15: ='INVOICE 6'!C15 -> 0 | D15: =SUM(B15:C15) -> 684800 | E15: =SUM('INVOICE 6'!E15,'INVOICE 6'!H15) -> 0 | F15: =SUM('INVOICE 6'!F15,'INVOICE 6'!I15) -> 0 | G15: =SUM(E15:F15) -> 0 | H15: 0 | I15: 0 | J15: =SUM(H15:I15) -> 0 | K15: =B15-E15-H15 -> 684800 | L15: 0 | M15: =SUM(K15:L15) -> 684800 | N15: ='INVOICE 6'!N15 -> 1st Advance [3/6/20]
A16: Services & Supplies | B16: ='INVOICE 6'!B16 -> 2150000 | C16: ='INVOICE 6'!C16 -> 0 | D16: 2150000 | E16: =SUM('INVOICE 6'!E16,'INVOICE 6'!H16) -> 0 | F16: =SUM('INVOICE 6'!F16,'INVOICE 6'!I16) -> 0 | G16: =SUM(E16:F16) -> 0 | H16: 0 | I16: 0 | J16: 0 | K16: 2150000 | L16: 0 | M16: 2150000 | N16: ='INVOICE 6'!N16 -> 1000000
A17: Professional Services | B17: ='INVOICE 6'!B17 -> 0 | C17: ='INVOICE 6'!C17 -> 0 | D17: 0 | E17: =SUM('INVOICE 6'!E17,'INVOICE 6'!H17) -> 0 | F17: =SUM('INVOICE 6'!F17,'INVOICE 6'!I17) -> 0 | G17: =SUM(E17:F17) -> 0 | H17: 0 | I17: 0 | J17: 0 | K17: 0 | L17: 0 | M17: 0
A18: NGO Subcontracts | B18: ='INVOICE 6'!B18 -> 0 | C18: ='INVOICE 6'!C18 -> 0 | D18: 0 | E18: =SUM('INVOICE 6'!E18,'INVOICE 6'!H18) -> 0 | F18: =SUM('INVOICE 6'!F18,'INVOICE 6'!I18) -> 0 | G18: 0 | H18: 0 | I18: 0 | J18: 0 | K18: 0 | L18: 0 | M18: 0 | N18: ='INVOICE 6'!N18 -> 2nd Advance [enter date]
A19: Equipment / Fixed Assets | B19: ='INVOICE 6'!B19 -> 7000 | C19: ='INVOICE 6'!C19 -> 0 | D19: 7000 | E19: =SUM('INVOICE 6'!E19,'INVOICE 6'!H19) -> 0 | F19: =SUM('INVOICE 6'!F19,'INVOICE 6'!I19) -> 0 | G19: 0 | H19: 0 | I19: 0 | J19: 0 | K19: 7000 | L19: 0 | M19: 7000 | N19: ='INVOICE 6'!N19 -> 0
A20: Data Collection & Progress Reporting | B20: ='INVOICE 6'!B20 -> 18950 | C20: ='INVOICE 6'!C20 -> 0 | D20: 18950 | E20: =SUM('INVOICE 6'!E20,'INVOICE 6'!H20) -> 0 | F20: =SUM('INVOICE 6'!F20,'INVOICE 6'!I20) -> 0 | G20: 0 | H20: 0 | I20: 0 | J20: 0 | K20: 18950 | L20: 0 | M20: 18950
A21: Other (Travel, Training, etc.) | B21: ='INVOICE 6'!B21 -> 5000 | C21: ='INVOICE 6'!C21 -> 0 | D21: 5000 | E21: =SUM('INVOICE 6'!E21,'INVOICE 6'!H21) -> 0 | F21: =SUM('INVOICE 6'!F21,'INVOICE 6'!I21) -> 0 | G21: 0 | H21: 0 | I21: 0 | J21: 0 | K21: 5000 | L21: 0 | M21: 5000 | N21: ='INVOICE 6'!N21 -> 3rd Advance [enter date]
A22: Indirect Costs | B22: ='INVOICE 6'!B22 -> 134250 | C22: ='INVOICE 6'!C22 -> 0 | D22: =SUM(B22:C22) -> 134250 | E22: =SUM('INVOICE 6'!E22,'INVOICE 6'!H22) -> 0 | F22: =SUM('INVOICE 6'!F22,'INVOICE 6'!I22) -> 0 | G22: 0 | H22: 0 | I22: 0 | J22: 0 | K22: 134250 | L22: 0 | M22: 134250 | N22: ='INVOICE 6'!N22 -> 0
A23: TOTAL | B23: =SUM(B15:B22) -> 3000000 | C23: 0 | D23: 3000000 | E23: 0 | F23: 0 | G23: 0 | H23: 0 | I23: 0 | J23: 0 | K23: 3000000 | L23: 0 | M23: 3000000 | N23: =SUM(N16+N19+N22) -> 1000000
A25: Project Income | C25: Income reported to date | D25: ='INVOICE 6'!D25+I25 -> 0 | F25: Prior allocated income | G25: 0 | H25: This Period | I25: 0 | L25: Unallocated income balance | M25: =D25-G25 -> 0
C27: Grant funds expended to date: | D27: =SUM(E23,H23) -> 0 | G27: Grant funds claimed this period: | H27: =H23 -> 0 | L27: Percent of total disbursed
G28: Advance Disbursement Balance: | H28: =N23-D27 -> 1000000 | L28: funds expended to date: | N28: =D27/N23 -> 0
D32: Expenditure Descriptions - Units / $ Amounts | L32: Comments
A33: Salaries & Benefits | B33: Grant Funds | C33: =H15 -> 0
B34: Project Income | C34: =I15 -> 0
A35: Services & Supplies | B35: Grant Funds | C35: =H16 -> 0
B36: Project Income | C36: =I16 -> 0
A37: Professional Services | B37: Grant Funds | C37: =H17 -> 0
B38: Project Income | C38: =I17 -> 0
A39: NGO Subcontracts | B39: Grant Funds | C39: =H18 -> 0
B40: Project Income | C40: =I18 -> 0
A41: Equipment / Fixed Assets | B41: Grant Funds | C41: =H19 -> 0
B42: Project Income | C42: =I19 -> 0
A43: Data Collection & Progress Reporting | B43: Grant Funds | C43: =H20 -> 0
B44: Project Income | C44: =I20 -> 0
A45: Other (Travel, Training, etc.) | B45: Grant Funds | C45: =H21 -> 0
B46: Project Income | C46: =I21 -> 0
A47: Indirect Costs | B47: Grant Funds | C47: =H22 -> 0
B48: Project Income | C48: =I22 -> 0
A49: Project Income Earned | C49: =I25 -> 0
A50: PERSON PREPARING REPORT | E50: AUTHORIZED FINANCIAL OFFICER | L50: BSCC Supplier Data - Internal Use Only
E51: By checking the box below, I hereby certify that I am the authorized financial officer of the herein named agency. I further certify that I have not violated any of the provisions of Section 1090 of the Government Code in incurring the expenditures reported in this invoice, nor in any other way; that Sections 1090 through 1096 of the Government Code will not be violated in any way in the expenditure of funds pursuant to this invoice; that statement of funds above is true, correct, and in accordance with program provisions in all respects; and that all expenditures submitted after the expiration date of this contract are for the purpose of substantiating obligations legally incurred during the contract period. Furthermore, by submitting this invoice, I acknowledge that it must adhere to all of the requirements in the BSCC Grant Administration Guide, including any updates to the Guide during the term of the grant agreement.
L52: ='INVOICE 6'!L52:N52 -> 146536
A53: Name, Title | L53: Supplier ID
L54: ='INVOICE 6'!L54:N54 -> VICTORVALL-020
A55: Phone | L55: Supplier Name
L56: ='INVOICE 6'!L56:N56 -> P.O. Box 1248
A57: Email | L57: Address Line 1
L58: ='INVOICE 6'!L58:N58 -> Victorville, CA 92393
A59: Date | L59: Address Line 2
E62: Name, Title
E64: Phone
E66: Date
A68: BSCC USE ONLY
A69: Date Received: | G69: Approved By: | M69: Date:
I70: BSCC Field Representative

Sheet INVOICE 8
A1: STATE OF CALIFORNIA | L1: Purchase Authority: 5227
A2: BOARD OF STATE AND COMMUNITY CORRECTIONS | L2: ='INVOICE 7'!L2:N2 -> Purchase Order: 2928
A3: Financial Invoice - Form BSCC 201 (Revised 06/2020)
A5: Program: | B5: Adult Reentry Grant | K5: Please Note: The California State Controller's Office will send all checks directly to the address listed in the "BSCC Supplier Data" section at the bottom of this invoice.
A7: Grantee: | B7: ='INVOICE 7'!B7 -> Victor Valley Family Resource Center | F7: Project Title: | G7: ='INVOICE 7'!G7:I7 -> RA
A9: Contract #: | B9: ='INVOICE 7'!B9 -> BSCC 430-19 | D9: Term: | E9: 2019-08-01 | F9: TO | G9: 2023-02-28 | L9: Invoicing Frequency | M9: Quarterly
A11: Invoice #: | B11: 8 | D11: Reporting Period: | E11: 2021-04-01 | F11: TO | G11: 2021-06-30 | H11: Due: | I11: 2021-08-16 | L11: Final Invoice (Y/N): | M11: No
A13: Line Items | B13: Budget | E13: Prior Expenditures | H13: This Reporting Period | K13: Balance | N13: Advance Disbursements
B14: Grant Funds | C14: Project Income | D14: TOTAL | E14: Grant Funds | F14: Project Income | G14: TOTAL | H14: Grant Funds | I14: Project Income | J14: TOTAL | K14: Grant Funds | L14: Project Income | M14: TOTAL
A15: Salaries & Benefits | B15: ='INVOICE 7'!B15 -> 684800 | C15: ='INVOICE 7'!C15 -> 0 | D15: =SUM(B15:C15) -> 684800 | E15: =SUM('INVOICE 7'!E15,'INVOICE 7'!H15) -> 0 | F15: =SUM('INVOICE 7'!F15,'INVOICE 7'!I15) -> 0 | G15: =SUM(E15:F15) -> 0 | H15: 0 | I15: 0 | J15: =SUM(H15:I15) -> 0 | K15: =B15-E15-H15 -> 684800 | L15: 0 | M15: =SUM(K15:L15) -> 684800 | N15: ='INVOICE 7'!N15 -> 1st Advance [3/6/20]
A16: Services & Supplies | B16: ='INVOICE 7'!B16 -> 2150000 | C16: ='INVOICE 7'!C16 -> 0 | D16: 2150000 | E16: =SUM('INVOICE 7'!E16,'INVOICE 7'!H16) -> 0 | F16: =SUM('INVOICE 7'!F16,'INVOICE 7'!I16) -> 0 | G16: =SUM(E16:F16) -> 0 | H16: 0 | I16: 0 | J16: 0 | K16: 2150000 | L16: 0 | M16: 2150000 | N16: ='INVOICE 7'!N16 -> 1000000
A17: Professional Services | B17: ='INVOICE 7'!B17 -> 0 | C17: ='INVOICE 7'!C17 -> 0 | D17: 0 | E17: =SUM('INVOICE 7'!E17,'INVOICE 7'!H17) -> 0 | F17: =SUM('INVOICE 7'!F17,'INVOICE 7'!I17) -> 0 | G17: =SUM(E17:F17) -> 0 | H17: 0 | I17: 0 | J17: 0 | K17: 0 | L17: 0 | M17: 0
A18: NGO Subcontracts | B18: ='INVOICE 7'!B18 -> 0 | C18: ='INVOICE 7'!C18 -> 0 | D18: 0 | E18: =SUM('INVOICE 7'!E18,'INVOICE 7'!H18) -> 0 | F18: =SUM('INVOICE 7'!F18,'INVOICE 7'!I18) -> 0 | G18: 0 | H18: 0 | I18: 0 | J18: 0 | K18: 0 | L18: 0 | M18: 0 | N18: ='INVOICE 7'!N18 -> 2nd Advance [enter date]
A19: Equipment / Fixed Assets | B19: ='INVOICE 7'!B19 -> 7000 | C19: ='INVOICE 7'!C19 -> 0 | D19: 7000 | E19: =SUM('INVOICE 7'!E19,'INVOICE 7'!H19) -> 0 | F19: =SUM('INVOICE 7'!F19,'INVOICE 7'!I19) -> 0 | G19: 0 | H19: 0 | I19: 0 | J19: 0 | K19: 7000 | L19: 0 | M19: 7000 | N19: ='INVOICE 7'!N19 -> 0
A20: Data Collection & Progress Reporting | B20: ='INVOICE 7'!B20 -> 18950 | C20: ='INVOICE 7'!C20 -> 0 | D20: 18950 | E20: =SUM('INVOICE 7'!E20,'INVOICE 7'!H20) -> 0 | F20: =SUM('INVOICE 7'!F20,'INVOICE 7'!I20) -> 0 | G20: 0 | H20: 0 | I20: 0 | J20: 0 | K20: 18950 | L20: 0 | M20: 18950
A21: Other (Travel, Training, etc.) | B21: ='INVOICE 7'!B21 -> 5000 | C21: ='INVOICE 7'!C21 -> 0 | D21: 5000 | E21: =SUM('INVOICE 7'!E21,'INVOICE 7'!H21) -> 0 | F21: =SUM('INVOICE 7'!F21,'INVOICE 7'!I21) -> 0 | G21: 0 | H21: 0 | I21: 0 | J21: 0 | K21: 5000 | L21: 0 | M21: 5000 | N21: ='INVOICE 7'!N21 -> 3rd Advance [enter date]
A22: Indirect Costs | B22: ='INVOICE 7'!B22 -> 134250 | C22: ='INVOICE 7'!C22 -> 0 | D22: =SUM(B22:C22) -> 134250 | E22: =SUM('INVOICE 7'!E22,'INVOICE 7'!H22) -> 0 | F22: =SUM('INVOICE 7'!F22,'INVOICE 7'!I22) -> 0 | G22: 0 | H22: 0 | I22: 0 | J22: 0 | K22: 134250 | L22: 0 | M22: 134250 | N22: ='INVOICE 7'!N22 -> 0
A23: TOTAL | B23: =SUM(B15:B22) -> 3000000 | C23: 0 | D23: 3000000 | E23: 0 | F23: 0 | G23: 0 | H23: 0 | I23: 0 | J23: 0 | K23: 3000000 | L23: 0 | M23: 3000000 | N23: =SUM(N16+N19+N22) -> 1000000
A25: Project Income | C25: Income reported to date | D25: ='INVOICE 7'!D25+I25 -> 0 | F25: Prior allocated income | G25: 0 | H25: This Period | I25: 0 | L25: Unallocated income balance | M25: =D25-G25 -> 0
C27: Grant funds expended to date: | D27: =SUM(E23,H23) -> 0 | G27: Grant funds claimed this period: | H27: =H23 -> 0 | L27: Percent of total disbursed
G28: Advance Disbursement Balance: | H28: =N23-D27 -> 1000000 | L28: funds expended to date: | N28: =D27/N23 -> 0
D32: Expenditure Descriptions - Units / $ Amounts | L32: Comments
A33: Salaries & Benefits | B33: Grant Funds | C33: =H15 -> 0
B34: Project Income | C34: =I15 -> 0
A35: Services & Supplies | B35: Grant Funds | C35: =H16 -> 0
B36: Project Income | C36: =I16 -> 0
A37: Professional Services | B37: Grant Funds | C37: =H17 -> 0
B38: Project Income | C38: =I17 -> 0
A39: NGO Subcontracts | B39: Grant Funds | C39: =H18 -> 0
B40: Project Income | C40: =I18 -> 0
A41: Equipment / Fixed Assets | B41: Grant Funds | C41: =H19 -> 0
B42: Project Income | C42: =I19 -> 0
A43: Data Collection & Progress Reporting | B43: Grant Funds | C43: =H20 -> 0
B44: Project Income | C44: =I20 -> 0
A45: Other (Travel, Training, etc.) | B45: Grant Funds | C45: =H21 -> 0
B46: Project Income | C46: =I21 -> 0
A47: Indirect Costs | B47: Grant Funds | C47: =H22 -> 0
B48: Project Income | C48: =I22 -> 0
A49: Project Income Earned | C49: =I25 -> 0
A50: PERSON PREPARING REPORT | E50: AUTHORIZED FINANCIAL OFFICER | L50: BSCC Supplier Data - Internal Use Only
E51: By checking the box below, I hereby certify that I am the authorized financial officer of the herein named agency. I further certify that I have not violated any of the provisions of Section 1090 of the Government Code in incurring the expenditures reported in this invoice, nor in any other way; that Sections 1090 through 1096 of the Government Code will not be violated in any way in the expenditure of funds pursuant to this invoice; that statement of funds above is true, correct, and in accordance with program provisions in all respects; and that all expenditures submitted after the expiration date of this contract are for the purpose of substantiating obligations legally incurred during the contract period. Furthermore, by submitting this invoice, I acknowledge that it must adhere to all of the requirements in the BSCC Grant Administration Guide, including any updates to the Guide during the term of the grant agreement.
L52: ='INVOICE 7'!L52:N52 -> 146536
A53: Name, Title | L53: Supplier ID
L54: ='INVOICE 7'!L54:N54 -> VICTORVALL-020
A55: Phone | L55: Supplier Name
L56: ='INVOICE 7'!L56:N56 -> P.O. Box 1248
A57: Email | L57: Address Line 1
L58: ='INVOICE 7'!L58:N58 -> Victorville, CA 92393
A59: Date | L59: Address Line 2
E62: Name, Title
E64: Phone
E66: Date
A68: BSCC USE ONLY
A69: Date Received: | G69: Approved By: | M69: Date:
I70: BSCC Field Representative

Sheet INVOICE 9
A1: STATE OF CALIFORNIA | L1: Purchase Authority: 5227
A2: BOARD OF STATE AND COMMUNITY CORRECTIONS | L2: ='INVOICE 8'!L2:N2 -> Purchase Order: 2928
A3: Financial Invoice - Form BSCC 201 (Revised 06/2020)
A5: Program: | B5: Adult Reentry Grant | K5: Please Note: The California State Controller's Office will send all checks directly to the address listed in the "BSCC Supplier Data" section at the bottom of this invoice.
A7: Grantee: | B7: ='INVOICE 8'!B7 -> Victor Valley Family Resource Center | F7: Project Title: | G7: ='INVOICE 8'!G7:I7 -> RA
A9: Contract #: | B9: ='INVOICE 8'!B9 -> BSCC 430-19 | D9: Term: | E9: 2019-08-01 | F9: TO | G9: 2023-02-28 | L9: Invoicing Frequency | M9: Quarterly
A11: Invoice #: | B11: 9 | D11: Reporting Period: | E11: 2021-07-01 | F11: TO | G11: 2021-09-30 | H11: Due: | I11: 2021-11-15 | L11: Final Invoice (Y/N): | M11: No
A13: Line Items | B13: Budget | E13: Prior Expenditures | H13: This Reporting Period | K13: Balance | N13: Advance Disbursements
B14: Grant Funds | C14: Project Income | D14: TOTAL | E14: Grant Funds | F14: Project Income | G14: TOTAL | H14: Grant Funds | I14: Project Income | J14: TOTAL | K14: Grant Funds | L14: Project Income | M14: TOTAL
A15: Salaries & Benefits | B15: ='INVOICE 8'!B15 -> 684800 | C15: ='INVOICE 8'!C15 -> 0 | D15: =SUM(B15:C15) -> 684800 | E15: =SUM('INVOICE 8'!E15,'INVOICE 8'!H15) -> 0 | F15: =SUM('INVOICE 8'!F15,'INVOICE 8'!I15) -> 0 | G15: =SUM(E15:F15) -> 0 | H15: 0 | I15: 0 | J15: =SUM(H15:I15) -> 0 | K15: =B15-E15-H15 -> 684800 | L15: 0 | M15: =SUM(K15:L15) -> 684800 | N15: ='INVOICE 8'!N15 -> 1st Advance [3/6/20]
A16: Services & Supplies | B16: ='INVOICE 8'!B16 -> 2150000 | C16: ='INVOICE 8'!C16 -> 0 | D16: 2150000 | E16: =SUM('INVOICE 8'!E16,'INVOICE 8'!H16) -> 0 | F16: =SUM('INVOICE 8'!F16,'INVOICE 8'!I16) -> 0 | G16: =SUM(E16:F16) -> 0 | H16: 0 | I16: 0 | J16: 0 | K16: 2150000 | L16: 0 | M16: 2150000 | N16: ='INVOICE 8'!N16 -> 1000000
A17: Professional Services | B17: ='INVOICE 8'!B17 -> 0 | C17: ='INVOICE 8'!C17 -> 0 | D17: 0 | E17: =SUM('INVOICE 8'!E17,'INVOICE 8'!H17) -> 0 | F17: =SUM('INVOICE 8'!F17,'INVOICE 8'!I17) -> 0 | G17: =SUM(E17:F17) -> 0 | H17: 0 | I17: 0 | J17: 0 | K17: 0 | L17: 0 | M17: 0
A18: NGO Subcontracts | B18: ='INVOICE 8'!B18 -> 0 | C18: ='INVOICE 8'!C18 -> 0 | D18: 0 | E18: =SUM('INVOICE 8'!E18,'INVOICE 8'!H18) -> 0 | F18: =SUM('INVOICE 8'!F18,'INVOICE 8'!I18) -> 0 | G18: 0 | H18: 0 | I18: 0 | J18: 0 | K18: 0 | L18: 0 | M18: 0 | N18: ='INVOICE 8'!N18 -> 2nd Advance [enter date]
A19: Equipment / Fixed Assets | B19: ='INVOICE 8'!B19 -> 7000 | C19: ='INVOICE 8'!C19 -> 0 | D19: 7000 | E19: =SUM('INVOICE 8'!E19,'INVOICE 8'!H19) -> 0 | F19: =SUM('INVOICE 8'!F19,'INVOICE 8'!I19) -> 0 | G19: 0 | H19: 0 | I19: 0 | J19: 0 | K19: 7000 | L19: 0 | M19: 7000 | N19: ='INVOICE 8'!N19 -> 0
A20: Data Collection & Progress Reporting | B20: ='INVOICE 8'!B20 -> 18950 | C20: ='INVOICE 8'!C20 -> 0 | D20: 18950 | E20: =SUM('INVOICE 8'!E20,'INVOICE 8'!H20) -> 0 | F20: =SUM('INVOICE 8'!F20,'INVOICE 8'!I20) -> 0 | G20: 0 | H20: 0 | I20: 0 | J20: 0 | K20: 18950 | L20: 0 | M20: 18950
A21: Other (Travel, Training, etc.) | B21: ='INVOICE 8'!B21 -> 5000 | C21: ='INVOICE 8'!C21 -> 0 | D21: 5000 | E21: =SUM('INVOICE 8'!E21,'INVOICE 8'!H21) -> 0 | F21: =SUM('INVOICE 8'!F21,'INVOICE 8'!I21) -> 0 | G21: 0 | H21: 0 | I21: 0 | J21: 0 | K21: 5000 | L21: 0 | M21: 5000 | N21: ='INVOICE 8'!N21 -> 3rd Advance [enter date]
A22: Indirect Costs | B22: ='INVOICE 8'!B22 -> 134250 | C22: ='INVOICE 8'!C22 -> 0 | D22: =SUM(B22:C22) -> 134250 | E22: =SUM('INVOICE 8'!E22,'INVOICE 8'!H22) -> 0 | F22: =SUM('INVOICE 8'!F22,'INVOICE 8'!I22) -> 0 | G22: 0 | H22: 0 | I22: 0 | J22: 0 | K22: 134250 | L22: 0 | M22: 134250 | N22: ='INVOICE 8'!N22 -> 0
A23: TOTAL | B23: =SUM(B15:B22) -> 3000000 | C23: 0 | D23: 3000000 | E23: 0 | F23: 0 | G23: 0 | H23: 0 | I23: 0 | J23: 0 | K23: 3000000 | L23: 0 | M23: 3000000 | N23: =SUM(N16+N19+N22) -> 1000000
A25: Project Income | C25: Income reported to date | D25: ='INVOICE 8'!D25+I25 -> 0 | F25: Prior allocated income | G25: 0 | H25: This Period | I25: 0 | L25: Unallocated income balance | M25: =D25-G25 -> 0
C27: Grant funds expended to date: | D27: =SUM(E23,H23) -> 0 | G27: Grant funds claimed this period: | H27: =H23 -> 0 | L27: Percent of total disbursed
G28: Advance Disbursement Balance: | H28: =N23-D27 -> 1000000 | L28: funds expended to date: | N28: =D27/N23 -> 0
D32: Expenditure Descriptions - Units / $ Amounts | L32: Comments
A33: Salaries & Benefits | B33: Grant Funds | C33: =H15 -> 0
B34: Project Income | C34: =I15 -> 0
A35: Services & Supplies | B35: Grant Funds | C35: =H16 -> 0
B36: Project Income | C36: =I16 -> 0
A37: Professional Services | B37: Grant Funds | C37: =H17 -> 0
B38: Project Income | C38: =I17 -> 0
A39: NGO Subcontracts | B39: Grant Funds | C39: =H18 -> 0
B40: Project Income | C40: =I18 -> 0
A41: Equipment / Fixed Assets | B41: Grant Funds | C41: =H19 -> 0
B42: Project Income | C42: =I19 -> 0
A43: Data Collection & Progress Reporting | B43: Grant Funds | C43: =H20 -> 0
B44: Project Income | C44: =I20 -> 0
A45: Other (Travel, Training, etc.) | B45: Grant Funds | C45: =H21 -> 0
B46: Project Income | C46: =I21 -> 0
A47: Indirect Costs | B47: Grant Funds | C47: =H22 -> 0
B48: Project Income | C48: =I22 -> 0
A49: Project Income Earned | C49: =I25 -> 0
A50: PERSON PREPARING REPORT | E50: AUTHORIZED FINANCIAL OFFICER | L50: BSCC Supplier Data - Internal Use Only
E51: By checking the box below, I hereby certify that I am the authorized financial officer of the herein named agency. I further certify that I have not violated any of the provisions of Section 1090 of the Government Code in incurring the expenditures reported in this invoice, nor in any other way; that Sections 1090 through 1096 of the Government Code will not be violated in any way in the expenditure of funds pursuant to this invoice; that statement of funds above is true, correct, and in accordance with program provisions in all respects; and that all expenditures submitted after the expiration date of this contract are for the purpose of substantiating obligations legally incurred during the contract period. Furthermore, by submitting this invoice, I acknowledge that it must adhere to all of the requirements in the BSCC Grant Administration Guide, including any updates to the Guide during the term of the grant agreement.
L52: ='INVOICE 8'!L52:N52 -> 146536
A53: Name, Title | L53: Supplier ID
L54: ='INVOICE 8'!L54:N54 -> VICTORVALL-020
A55: Phone | L55: Supplier Name
L56: ='INVOICE 8'!L56:N56 -> P.O. Box 1248
A57: Email | L57: Address Line 1
L58: ='INVOICE 8'!L58:N58 -> Victorville, CA 92393
A59: Date | L59: Address Line 2
E62: Name, Title
E64: Phone
E66: Date
A68: BSCC USE ONLY
A69: Date Received: | G69: Approved By: | M69: Date:
I70: BSCC Field Representative

Sheet INVOICE 10
A1: STATE OF CALIFORNIA | L1: Purchase Authority: 5227
A2: BOARD OF STATE AND COMMUNITY CORRECTIONS | L2: ='INVOICE 9'!L2:N2 -> Purchase Order: 2928
A3: Financial Invoice - Form BSCC 201 (Revised 06/2020)
A5: Program: | B5: Adult Reentry Grant | K5: Please Note: The California State Controller's Office will send all checks directly to the address listed in the "BSCC Supplier Data" section at the bottom of this invoice.
A7: Grantee: | B7: ='INVOICE 9'!B7 -> Victor Valley Family Resource Center | F7: Project Title: | G7: ='INVOICE 9'!G7:I7 -> RA
A9: Contract #: | B9: ='INVOICE 9'!B9 -> BSCC 430-19 | D9: Term: | E9: 2019-08-01 | F9: TO | G9: 2023-02-28 | L9: Invoicing Frequency | M9: Quarterly
A11: Invoice #: | B11: 10 | D11: Reporting Period: | E11: 2021-10-01 | F11: TO | G11: 2021-12-31 | H11: Due: | I11: 2022-02-15 | L11: Final Invoice (Y/N): | M11: No
A13: Line Items | B13: Budget | E13: Prior Expenditures | H13: This Reporting Period | K13: Balance | N13: Advance Disbursements
B14: Grant Funds | C14: Project Income | D14: TOTAL | E14: Grant Funds | F14: Project Income | G14: TOTAL | H14: Grant Funds | I14: Project Income | J14: TOTAL | K14: Grant Funds | L14: Project Income | M14: TOTAL
A15: Salaries & Benefits | B15: ='INVOICE 9'!B15 -> 684800 | C15: ='INVOICE 9'!C15 -> 0 | D15: =SUM(B15:C15) -> 684800 | E15: =SUM('INVOICE 9'!E15,'INVOICE 9'!H15) -> 0 | F15: =SUM('INVOICE 9'!F15,'INVOICE 9'!I15) -> 0 | G15: =SUM(E15:F15) -> 0 | H15: 0 | I15: 0 | J15: =SUM(H15:I15) -> 0 | K15: =B15-E15-H15 -> 684800 | L15: 0 | M15: =SUM(K15:L15) -> 684800 | N15: ='INVOICE 9'!N15 -> 1st Advance [3/6/20]
A16: Services & Supplies | B16: ='INVOICE 9'!B16 -> 2150000 | C16: ='INVOICE 9'!C16 -> 0 | D16: 2150000 | E16: =SUM('INVOICE 9'!E16,'INVOICE 9'!H16) -> 0 | F16: =SUM('INVOICE 9'!F16,'INVOICE 9'!I16) -> 0 | G16: =SUM(E16:F16) -> 0 | H16: 0 | I16: 0 | J16: 0 | K16: 2150000 | L16: 0 | M16: 2150000 | N16: ='INVOICE 9'!N16 -> 1000000
A17: Professional Services | B17: ='INVOICE 9'!B17 -> 0 | C17: ='INVOICE 9'!C17 -> 0 | D17: 0 | E17: =SUM('INVOICE 9'!E17,'INVOICE 9'!H17) -> 0 | F17: =SUM('INVOICE 9'!F17,'INVOICE 9'!I17) -> 0 | G17: =SUM(E17:F17) -> 0 | H17: 0 | I17: 0 | J17: 0 | K17: 0 | L17: 0 | M17: 0
A18: NGO Subcontracts | B18: ='INVOICE 9'!B18 -> 0 | C18: ='INVOICE 9'!C18 -> 0 | D18: 0 | E18: =SUM('INVOICE 9'!E18,'INVOICE 9'!H18) -> 0 | F18: =SUM('INVOICE 9'!F18,'INVOICE 9'!I18) -> 0 | G18: 0 | H18: 0 | I18: 0 | J18: 0 | K18: 0 | L18: 0 | M18: 0 | N18: ='INVOICE 9'!N18 -> 2nd Advance [enter date]
A19: Equipment / Fixed Assets | B19: ='INVOICE 9'!B19 -> 7000 | C19: ='INVOICE 9'!C19 -> 0 | D19: 7000 | E19: =SUM('INVOICE 9'!E19,'INVOICE 9'!H19) -> 0 | F19: =SUM('INVOICE 9'!F19,'INVOICE 9'!I19) -> 0 | G19: 0 | H19: 0 | I19: 0 | J19: 0 | K19: 7000 | L19: 0 | M19: 7000 | N19: ='INVOICE 9'!N19 -> 0
A20: Data Collection & Progress Reporting | B20: ='INVOICE 9'!B20 -> 18950 | C20: ='INVOICE 9'!C20 -> 0 | D20: 18950 | E20: =SUM('INVOICE 9'!E20,'INVOICE 9'!H20) -> 0 | F20: =SUM('INVOICE 9'!F20,'INVOICE 9'!I20) -> 0 | G20: 0 | H20: 0 | I20: 0 | J20: 0 | K20: 18950 | L20: 0 | M20: 18950
A21: Other (Travel, Training, etc.) | B21: ='INVOICE 9'!B21 -> 5000 | C21: ='INVOICE 9'!C21 -> 0 | D21: 5000 | E21: =SUM('INVOICE 9'!E21,'INVOICE 9'!H21) -> 0 | F21: =SUM('INVOICE 9'!F21,'INVOICE 9'!I21) -> 0 | G21: 0 | H21: 0 | I21: 0 | J21: 0 | K21: 5000 | L21: 0 | M21: 5000 | N21: ='INVOICE 9'!N21 -> 3rd Advance [enter date]
A22: Indirect Costs | B22: ='INVOICE 9'!B22 -> 134250 | C22: ='INVOICE 9'!C22 -> 0 | D22: =SUM(B22:C22) -> 134250 | E22: =SUM('INVOICE 9'!E22,'INVOICE 9'!H22) -> 0 | F22: =SUM('INVOICE 9'!F22,'INVOICE 9'!I22) -> 0 | G22: 0 | H22: 0 | I22: 0 | J22: 0 | K22: 134250 | L22: 0 | M22: 134250 | N22: ='INVOICE 9'!N22 -> 0
A23: TOTAL | B23: =SUM(B15:B22) -> 3000000 | C23: 0 | D23: 3000000 | E23: 0 | F23: 0 | G23: 0 | H23: 0 | I23: 0 | J23: 0 | K23: 3000000 | L23: 0 | M23: 3000000 | N23: =SUM(N16+N19+N22) -> 1000000
A25: Project Income | C25: Income reported to date | D25: ='INVOICE 9'!D25+I25 -> 0 | F25: Prior allocated income | G25: 0 | H25: This Period | I25: 0 | L25: Unallocated income balance | M25: =D25-G25 -> 0
C27: Grant funds expended to date: | D27: =SUM(E23,H23) -> 0 | G27: Grant funds claimed this period: | H27: =H23 -> 0 | L27: Percent of total disbursed
G28: Advance Disbursement Balance: | H28: =N23-D27 -> 1000000 | L28: funds expended to date: | N28: =D27/N23 -> 0
D32: Expenditure Descriptions - Units / $ Amounts | L32: Comments
A33: Salaries & Benefits | B33: Grant Funds | C33: =H15 -> 0
B34: Project Income | C34: =I15 -> 0
A35: Services & Supplies | B35: Grant Funds | C35: =H16 -> 0
B36: Project Income | C36: =I16 -> 0
A37: Professional Services | B37: Grant Funds | C37: =H17 -> 0
B38: Project Income | C38: =I17 -> 0
A39: NGO Subcontracts | B39: Grant Funds | C39: =H18 -> 0
B40: Project Income | C40: =I18 -> 0
A41: Equipment / Fixed Assets | B41: Grant Funds | C41: =H19 -> 0
B42: Project Income | C42: =I19 -> 0
A43: Data Collection & Progress Reporting | B43: Grant Funds | C43: =H20 -> 0
B44: Project Income | C44: =I20 -> 0
A45: Other (Travel, Training, etc.) | B45: Grant Funds | C45: =H21 -> 0
B46: Project Income | C46: =I21 -> 0
A47: Indirect Costs | B47: Grant Funds | C47: =H22 -> 0
B48: Project Income | C48: =I22 -> 0
A49: Project Income Earned | C49: =I25 -> 0
A50: PERSON PREPARING REPORT | E50: AUTHORIZED FINANCIAL OFFICER | L50: BSCC Supplier Data - Internal Use Only
E51: By checking the box below, I hereby certify that I am the authorized financial officer of the herein named agency. I further certify that I have not violated any of the provisions of Section 1090 of the Government Code in incurring the expenditures reported in this invoice, nor in any other way; that Sections 1090 through 1096 of the Government Code will not be violated in any way in the expenditure of funds pursuant to this invoice; that statement of funds above is true, correct, and in accordance with program provisions in all respects; and that all expenditures submitted after the expiration date of this contract are for the purpose of substantiating obligations legally incurred during the contract period. Furthermore, by submitting this invoice, I acknowledge that it must adhere to all of the requirements in the BSCC Grant Administration Guide, including any updates to the Guide during the term of the grant agreement.
L52: ='INVOICE 9'!L52:N52 -> 146536
A53: Name, Title | L53: Supplier ID
L54: ='INVOICE 9'!L54:N54 -> VICTORVALL-020
A55: Phone | L55: Supplier Name
L56: ='INVOICE 9'!L56:N56 -> P.O. Box 1248
A57: Email | L57: Address Line 1
L58: ='INVOICE 9'!L58:N58 -> Victorville, CA 92393
A59: Date | L59: Address Line 2
E62: Name, Title
E64: Phone
E66: Date
A68: BSCC USE ONLY
A69: Date Received: | G69: Approved By: | M69: Date:
I70: BSCC Field Representative

Sheet INVOICE 11
A1: STATE OF CALIFORNIA | L1: Purchase Authority: 5227
A2: BOARD OF STATE AND COMMUNITY CORRECTIONS | L2: ='INVOICE 10'!L2:N2 -> Purchase Order: 2928
A3: Financial Invoice - Form BSCC 201 (Revised 06/2020)
A5: Program: | B5: Adult Reentry Grant | K5: Please Note: The California State Controller's Office will send all checks directly to the address listed in the "BSCC Supplier Data" section at the bottom of this invoice.
A7: Grantee: | B7: ='INVOICE 10'!B7 -> Victor Valley Family Resource Center | F7: Project Title: | G7: ='INVOICE 10'!G7:I7 -> RA
A9: Contract #: | B9: ='INVOICE 10'!B9 -> BSCC 430-19 | D9: Term: | E9: 2019-08-01 | F9: TO | G9: 2023-02-28 | L9: Invoicing Frequency | M9: Quarterly
A11: Invoice #: | B11: 11 | D11: Reporting Period: | E11: 2022-01-01 | F11: TO | G11: 2022-03-31 | H11: Due: | I11: 2022-05-16 | L11: Final Invoice (Y/N): | M11: No
A13: Line Items | B13: Budget | E13: Prior Expenditures | H13: This Reporting Period | K13: Balance | N13: Advance Disbursements
B14: Grant Funds | C14: Project Income | D14: TOTAL | E14: Grant Funds | F14: Project Income | G14: TOTAL | H14: Grant Funds | I14: Project Income | J14: TOTAL | K14: Grant Funds | L14: Project Income | M14: TOTAL
A15: Salaries & Benefits | B15: ='INVOICE 10'!B15 -> 684800 | C15: ='INVOICE 10'!C15 -> 0 | D15: =SUM(B15:C15) -> 684800 | E15: =SUM('INVOICE 10'!E15,'INVOICE 10'!H15) -> 0 | F15: =SUM('INVOICE 10'!F15,'INVOICE 10'!I15) -> 0 | G15: =SUM(E15:F15) -> 0 | H15: 0 | I15: 0 | J15: =SUM(H15:I15) -> 0 | K15: =B15-E15-H15 -> 684800 | L15: 0 | M15: =SUM(K15:L15) -> 684800 | N15: ='INVOICE 10'!N15 -> 1st Advance [3/6/20]
A16: Services & Supplies | B16: ='INVOICE 10'!B16 -> 2150000 | C16: ='INVOICE 10'!C16 -> 0 | D16: 2150000 | E16: =SUM('INVOICE 10'!E16,'INVOICE 10'!H16) -> 0 | F16: =SUM('INVOICE 10'!F16,'INVOICE 10'!I16) -> 0 | G16: =SUM(E16:F16) -> 0 | H16: 0 | I16: 0 | J16: 0 | K16: 2150000 | L16: 0 | M16: 2150000 | N16: ='INVOICE 10'!N16 -> 1000000
A17: Professional Services | B17: ='INVOICE 10'!B17 -> 0 | C17: ='INVOICE 10'!C17 -> 0 | D17: 0 | E17: =SUM('INVOICE 10'!E17,'INVOICE 10'!H17) -> 0 | F17: =SUM('INVOICE 10'!F17,'INVOICE 10'!I17) -> 0 | G17: =SUM(E17:F17) -> 0 | H17: 0 | I17: 0 | J17: 0 | K17: 0 | L17: 0 | M17: 0
A18: NGO Subcontracts | B18: ='INVOICE 10'!B18 -> 0 | C18: ='INVOICE 10'!C18 -> 0 | D18: 0 | E18: =SUM('INVOICE 10'!E18,'INVOICE 10'!H18) -> 0 | F18: =SUM('INVOICE 10'!F18,'INVOICE 10'!I18) -> 0 | G18: 0 | H18: 0 | I18: 0 | J18: 0 | K18: 0 | L18: 0 | M18: 0 | N18: ='INVOICE 10'!N18 -> 2nd Advance [enter date]
A19: Equipment / Fixed Assets | B19: ='INVOICE 10'!B19 -> 7000 | C19: ='INVOICE 10'!C19 -> 0 | D19: 7000 | E19: =SUM('INVOICE 10'!E19,'INVOICE 10'!H19) -> 0 | F19: =SUM('INVOICE 10'!F19,'INVOICE 10'!I19) -> 0 | G19: 0 | H19: 0 | I19: 0 | J19: 0 | K19: 7000 | L19: 0 | M19: 7000 | N19: ='INVOICE 10'!N19 -> 0
A20: Data Collection & Progress Reporting | B20: ='INVOICE 10'!B20 -> 18950 | C20: ='INVOICE 10'!C20 -> 0 | D20: 18950 | E20: =SUM('INVOICE 10'!E20,'INVOICE 10'!H20) -> 0 | F20: =SUM('INVOICE 10'!F20,'INVOICE 10'!I20) -> 0 | G20: 0 | H20: 0 | I20: 0 | J20: 0 | K20: 18950 | L20: 0 | M20: 18950
A21: Other (Travel, Training, etc.) | B21: ='INVOICE 10'!B21 -> 5000 | C21: ='INVOICE 10'!C21 -> 0 | D21: 5000 | E21: =SUM('INVOICE 10'!E21,'INVOICE 10'!H21) -> 0 | F21: =SUM('INVOICE 10'!F21,'INVOICE 10'!I21) -> 0 | G21: 0 | H21: 0 | I21: 0 | J21: 0 | K21: 5000 | L21: 0 | M21: 5000 | N21: ='INVOICE 10'!N21 -> 3rd Advance [enter date]
A22: Indirect Costs | B22: ='INVOICE 10'!B22 -> 134250 | C22: ='INVOICE 10'!C22 -> 0 | D22: =SUM(B22:C22) -> 134250 | E22: =SUM('INVOICE 10'!E22,'INVOICE 10'!H22) -> 0 | F22: =SUM('INVOICE 10'!F22,'INVOICE 10'!I22) -> 0 | G22: 0 | H22: 0 | I22: 0 | J22: 0 | K22: 134250 | L22: 0 | M22: 134250 | N22: ='INVOICE 10'!N22 -> 0
A23: TOTAL | B23: =SUM(B15:B22) -> 3000000 | C23: 0 | D23: 3000000 | E23: 0 | F23: 0 | G23: 0 | H23: 0 | I23: 0 | J23: 0 | K23: 3000000 | L23: 0 | M23: 3000000 | N23: =SUM(N16+N19+N22) -> 1000000
A25: Project Income | C25: Income reported to date | D25: ='INVOICE 10'!D25+I25 -> 0 | F25: Prior allocated income | G25: 0 | H25: This Period | I25: 0 | L25: Unallocated income balance | M25: =D25-G25 -> 0
C27: Grant funds expended to date: | D27: =SUM(E23,H23) -> 0 | G27: Grant funds claimed this period: | H27: =H23 -> 0 | L27: Percent of total disbursed
G28: Advance Disbursement Balance: | H28: =N23-D27 -> 1000000 | L28: funds expended to date: | N28: =D27/N23 -> 0
D32: Expenditure Descriptions - Units / $ Amounts | L32: Comments
A33: Salaries & Benefits | B33: Grant Funds | C33: =H15 -> 0
B34: Project Income | C34: =I15 -> 0
A35: Services & Supplies | B35: Grant Funds | C35: =H16 -> 0
B36: Project Income | C36: =I16 -> 0
A37: Professional Services | B37: Grant Funds | C37: =H17 -> 0
B38: Project Income | C38: =I17 -> 0
A39: NGO Subcontracts | B39: Grant Funds | C39: =H18 -> 0
B40: Project Income | C40: =I18 -> 0
A41: Equipment / Fixed Assets | B41: Grant Funds | C41: =H19 -> 0
B42: Project Income | C42: =I19 -> 0
A43: Data Collection & Progress Reporting | B43: Grant Funds | C43: =H20 -> 0
B44: Project Income | C44: =I20 -> 0
A45: Other (Travel, Training, etc.) | B45: Grant Funds | C45: =H21 -> 0
B46: Project Income | C46: =I21 -> 0
A47: Indirect Costs | B47: Grant Funds | C47: =H22 -> 0
B48: Project Income | C48: =I22 -> 0
A49: Project Income Earned | C49: =I25 -> 0
A50: PERSON PREPARING REPORT | E50: AUTHORIZED FINANCIAL OFFICER | L50: BSCC Supplier Data - Internal Use Only
E51: By checking the box below, I hereby certify that I am the authorized financial officer of the herein named agency. I further certify that I have not violated any of the provisions of Section 1090 of the Government Code in incurring the expenditures reported in this invoice, nor in any other way; that Sections 1090 through 1096 of the Government Code will not be violated in any way in the expenditure of funds pursuant to this invoice; that statement of funds above is true, correct, and in accordance with program provisions in all respects; and that all expenditures submitted after the expiration date of this contract are for the purpose of substantiating obligations legally incurred during the contract period. Furthermore, by submitting this invoice, I acknowledge that it must adhere to all of the requirements in the BSCC Grant Administration Guide, including any updates to the Guide during the term of the grant agreement.
L52: ='INVOICE 10'!L52:N52 -> 146536
A53: Name, Title | L53: Supplier ID
L54: ='INVOICE 10'!L54:N54 -> VICTORVALL-020
A55: Phone | L55: Supplier Name
L56: ='INVOICE 10'!L56:N56 -> P.O. Box 1248
A57: Email | L57: Address Line 1
L58: ='INVOICE 10'!L58:N58 -> Victorville, CA 92393
A59: Date | L59: Address Line 2
E62: Name, Title
E64: Phone
E66: Date
A68: BSCC USE ONLY
A69: Date Received: | G69: Approved By: | M69: Date:
I70: BSCC Field Representative

Sheet INVOICE 12
A1: STATE OF CALIFORNIA | L1: Purchase Authority: 5227
A2: BOARD OF STATE AND COMMUNITY CORRECTIONS | L2: ='INVOICE 11'!L2:N2 -> Purchase Order: 2928
A3: Financial Invoice - Form BSCC 201 (Revised 06/2020)
A5: Program: | B5: Adult Reentry Grant | K5: Please Note: The California State Controller's Office will send all checks directly to the address listed in the "BSCC Supplier Data" section at the bottom of this invoice.
A7: Grantee: | B7: ='INVOICE 11'!B7 -> Victor Valley Family Resource Center | F7: Project Title: | G7: ='INVOICE 11'!G7:I7 -> RA
A9: Contract #: | B9: ='INVOICE 11'!B9 -> BSCC 430-19 | D9: Term: | E9: 2019-08-01 | F9: TO | G9: 2023-02-28 | L9: Invoicing Frequency | M9: Quarterly
A11: Invoice #: | B11: 12 | D11: Reporting Period: | E11: 2022-04-01 | F11: TO | G11: 2022-06-30 | H11: Due: | I11: 2022-08-15 | L11: Final Invoice (Y/N): | M11: No
A13: Line Items | B13: Budget | E13: Prior Expenditures | H13: This Reporting Period | K13: Balance | N13: Advance Disbursements
B14: Grant Funds | C14: Project Income | D14: TOTAL | E14: Grant Funds | F14: Project Income | G14: TOTAL | H14: Grant Funds | I14: Project Income | J14: TOTAL | K14: Grant Funds | L14: Project Income | M14: TOTAL
A15: Salaries & Benefits | B15: ='INVOICE 11'!B15 -> 684800 | C15: ='INVOICE 11'!C15 -> 0 | D15: =SUM(B15:C15) -> 684800 | E15: =SUM('INVOICE 11'!E15,'INVOICE 11'!H15) -> 0 | F15: =SUM('INVOICE 11'!F15,'INVOICE 11'!I15) -> 0 | G15: =SUM(E15:F15) -> 0 | H15: 0 | I15: 0 | J15: =SUM(H15:I15) -> 0 | K15: =B15-E15-H15 -> 684800 | L15: 0 | M15: =SUM(K15:L15) -> 684800 | N15: ='INVOICE 11'!N15 -> 1st Advance [3/6/20]
A16: Services & Supplies | B16: ='INVOICE 11'!B16 -> 2150000 | C16: ='INVOICE 11'!C16 -> 0 | D16: 2150000 | E16: =SUM('INVOICE 11'!E16,'INVOICE 11'!H16) -> 0 | F16: =SUM('INVOICE 11'!F16,'INVOICE 11'!I16) -> 0 | G16: =SUM(E16:F16) -> 0 | H16: 0 | I16: 0 | J16: 0 | K16: 2150000 | L16: 0 | M16: 2150000 | N16: ='INVOICE 11'!N16 -> 1000000
A17: Professional Services | B17: ='INVOICE 11'!B17 -> 0 | C17: ='INVOICE 11'!C17 -> 0 | D17: 0 | E17: =SUM('INVOICE 11'!E17,'INVOICE 11'!H17) -> 0 | F17: =SUM('INVOICE 11'!F17,'INVOICE 11'!I17) -> 0 | G17: =SUM(E17:F17) -> 0 | H17: 0 | I17: 0 | J17: 0 | K17: 0 | L17: 0 | M17: 0
A18: NGO Subcontracts | B18: ='INVOICE 11'!B18 -> 0 | C18: ='INVOICE 11'!C18 -> 0 | D18: 0 | E18: =SUM('INVOICE 11'!E18,'INVOICE 11'!H18) -> 0 | F18: =SUM('INVOICE 11'!F18,'INVOICE 11'!I18) -> 0 | G18: 0 | H18: 0 | I18: 0 | J18: 0 | K18: 0 | L18: 0 | M18: 0 | N18: ='INVOICE 11'!N18 -> 2nd Advance [enter date]
A19: Equipment / Fixed Assets | B19: ='INVOICE 11'!B19 -> 7000 | C19: ='INVOICE 11'!C19 -> 0 | D19: 7000 | E19: =SUM('INVOICE 11'!E19,'INVOICE 11'!H19) -> 0 | F19: =SUM('INVOICE 11'!F19,'INVOICE 11'!I19) -> 0 | G19: 0 | H19: 0 | I19: 0 | J19: 0 | K19: 7000 | L19: 0 | M19: 7000 | N19: ='INVOICE 11'!N19 -> 0
A20: Data Collection & Progress Reporting | B20: ='INVOICE 11'!B20 -> 18950 | C20: ='INVOICE 11'!C20 -> 0 | D20: 18950 | E20: =SUM('INVOICE 11'!E20,'INVOICE 11'!H20) -> 0 | F20: =SUM('INVOICE 11'!F20,'INVOICE 11'!I20) -> 0 | G20: 0 | H20: 0 | I20: 0 | J20: 0 | K20: 18950 | L20: 0 | M20: 18950
A21: Other (Travel, Training, etc.) | B21: ='INVOICE 11'!B21 -> 5000 | C21: ='INVOICE 11'!C21 -> 0 | D21: 5000 | E21: =SUM('INVOICE 11'!E21,'INVOICE 11'!H21) -> 0 | F21: =SUM('INVOICE 11'!F21,'INVOICE 11'!I21) -> 0 | G21: 0 | H21: 0 | I21: 0 | J21: 0 | K21: 5000 | L21: 0 | M21: 5000 | N21: ='INVOICE 11'!N21 -> 3rd Advance [enter date]
A22: Indirect Costs | B22: ='INVOICE 11'!B22 -> 134250 | C22: ='INVOICE 11'!C22 -> 0 | D22: =SUM(B22:C22) -> 134250 | E22: =SUM('INVOICE 11'!E22,'INVOICE 11'!H22) -> 0 | F22: =SUM('INVOICE 11'!F22,'INVOICE 11'!I22) -> 0 | G22: 0 | H22: 0 | I22: 0 | J22: 0 | K22: 134250 | L22: 0 | M22: 134250 | N22: ='INVOICE 11'!N22 -> 0
A23: TOTAL | B23: =SUM(B15:B22) -> 3000000 | C23: 0 | D23: 3000000 | E23: 0 | F23: 0 | G23: 0 | H23: 0 | I23: 0 | J23: 0 | K23: 3000000 | L23: 0 | M23: 3000000 | N23: =SUM(N16+N19+N22) -> 1000000
A25: Project Income | C25: Income reported to date | D25: ='INVOICE 11'!D25+I25 -> 0 | F25: Prior allocated income | G25: 0 | H25: This Period | I25: 0 | L25: Unallocated income balance | M25: =D25-G25 -> 0
C27: Grant funds expended to date: | D27: =SUM(E23,H23) -> 0 | G27: Grant funds claimed this period: | H27: =H23 -> 0 | L27: Percent of total disbursed
G28: Advance Disbursement Balance: | H28: =N23-D27 -> 1000000 | L28: funds expended to date: | N28: =D27/N23 -> 0
D32: Expenditure Descriptions - Units / $ Amounts | L32: Comments
A33: Salaries & Benefits | B33: Grant Funds | C33: =H15 -> 0
B34: Project Income | C34: =I15 -> 0
A35: Services & Supplies | B35: Grant Funds | C35: =H16 -> 0
B36: Project Income | C36: =I16 -> 0
A37: Professional Services | B37: Grant Funds | C37: =H17 -> 0
B38: Project Income | C38: =I17 -> 0
A39: NGO Subcontracts | B39: Grant Funds | C39: =H18 -> 0
B40: Project Income | C40: =I18 -> 0
A41: Equipment / Fixed Assets | B41: Grant Funds | C41: =H19 -> 0
B42: Project Income | C42: =I19 -> 0
A43: Data Collection & Progress Reporting | B43: Grant Funds | C43: =H20 -> 0
B44: Project Income | C44: =I20 -> 0
A45: Other (Travel, Training, etc.) | B45: Grant Funds | C45: =H21 -> 0
B46: Project Income | C46: =I21 -> 0
A47: Indirect Costs | B47: Grant Funds | C47: =H22 -> 0
B48: Project Income | C48: =I22 -> 0
A49: Project Income Earned | C49: =I25 -> 0
A50: PERSON PREPARING REPORT | E50: AUTHORIZED FINANCIAL OFFICER | L50: BSCC Supplier Data - Internal Use Only
E51: By checking the box below, I hereby certify that I am the authorized financial officer of the herein named agency. I further certify that I have not violated any of the provisions of Section 1090 of the Government Code in incurring the expenditures reported in this invoice, nor in any other way; that Sections 1090 through 1096 of the Government Code will not be violated in any way in the expenditure of funds pursuant to this invoice; that statement of funds above is true, correct, and in accordance with program provisions in all respects; and that all expenditures submitted after the expiration date of this contract are for the purpose of substantiating obligations legally incurred during the contract period. Furthermore, by submitting this invoice, I acknowledge that it must adhere to all of the requirements in the BSCC Grant Administration Guide, including any updates to the Guide during the term of the grant agreement.
L52: ='INVOICE 11'!L52:N52 -> 146536
A53: Name, Title | L53: Supplier ID
L54: ='INVOICE 11'!L54:N54 -> VICTORVALL-020
A55: Phone | L55: Supplier Name
L56: ='INVOICE 11'!L56:N56 -> P.O. Box 1248
A57: Email | L57: Address Line 1
L58: ='INVOICE 11'!L58:N58 -> Victorville, CA 92393
A59: Date | L59: Address Line 2
E62: Name, Title
E64: Phone
E66: Date
A68: BSCC USE ONLY
A69: Date Received: | G69: Approved By: | M69: Date:
I70: BSCC Field Representative

Sheet INVOICE 13
A1: STATE OF CALIFORNIA | L1: Purchase Authority: 5227
A2: BOARD OF STATE AND COMMUNITY CORRECTIONS | L2: ='INVOICE 12'!L2:N2 -> Purchase Order: 2928
A3: Financial Invoice - Form BSCC 201 (Revised 06/2020)
A5: Program: | B5: Adult Reentry Grant | K5: Please Note: The California State Controller's Office will send all checks directly to the address listed in the "BSCC Supplier Data" section at the bottom of this invoice.
A7: Grantee: | B7: ='INVOICE 12'!B7 -> Victor Valley Family Resource Center | F7: Project Title: | G7: ='INVOICE 12'!G7:I7 -> RA
A9: Contract #: | B9: ='INVOICE 12'!B9 -> BSCC 430-19 | D9: Term: | E9: 2019-08-01 | F9: TO | G9: 2023-02-28 | L9: Invoicing Frequency | M9: Quarterly
A11: Invoice #: | B11: 13 | D11: Reporting Period: | E11: 2022-07-01 | F11: TO | G11: 2022-09-30 | H11: Due: | I11: 2022-11-15 | L11: Final Invoice (Y/N): | M11: No
A13: Line Items | B13: Budget | E13: Prior Expenditures | H13: This Reporting Period | K13: Balance | N13: Advance Disbursements
B14: Grant Funds | C14: Project Income | D14: TOTAL | E14: Grant Funds | F14: Project Income | G14: TOTAL | H14: Grant Funds | I14: Project Income | J14: TOTAL | K14: Grant Funds | L14: Project Income | M14: TOTAL
A15: Salaries & Benefits | B15: ='INVOICE 12'!B15 -> 684800 | C15: ='INVOICE 12'!C15 -> 0 | D15: =SUM(B15:C15) -> 684800 | E15: =SUM('INVOICE 12'!E15,'INVOICE 12'!H15) -> 0 | F15: =SUM('INVOICE 12'!F15,'INVOICE 12'!I15) -> 0 | G15: =SUM(E15:F15) -> 0 | H15: 0 | I15: 0 | J15: =SUM(H15:I15) -> 0 | K15: =B15-E15-H15 -> 684800 | L15: 0 | M15: =SUM(K15:L15) -> 684800 | N15: ='INVOICE 12'!N15 -> 1st Advance [3/6/20]
A16: Services & Supplies | B16: ='INVOICE 12'!B16 -> 2150000 | C16: ='INVOICE 12'!C16 -> 0 | D16: 2150000 | E16: =SUM('INVOICE 12'!E16,'INVOICE 12'!H16) -> 0 | F16: =SUM('INVOICE 12'!F16,'INVOICE 12'!I16) -> 0 | G16: =SUM(E16:F16) -> 0 | H16: 0 | I16: 0 | J16: 0 | K16: 2150000 | L16: 0 | M16: 2150000 | N16: ='INVOICE 12'!N16 -> 1000000
A17: Professional Services | B17: ='INVOICE 12'!B17 -> 0 | C17: ='INVOICE 12'!C17 -> 0 | D17: 0 | E17: =SUM('INVOICE 12'!E17,'INVOICE 12'!H17) -> 0 | F17: =SUM('INVOICE 12'!F17,'INVOICE 12'!I17) -> 0 | G17: =SUM(E17:F17) -> 0 | H17: 0 | I17: 0 | J17: 0 | K17: 0 | L17: 0 | M17: 0
A18: NGO Subcontracts | B18: ='INVOICE 12'!B18 -> 0 | C18: ='INVOICE 12'!C18 -> 0 | D18: 0 | E18: =SUM('INVOICE 12'!E18,'INVOICE 12'!H18) -> 0 | F18: =SUM('INVOICE 12'!F18,'INVOICE 12'!I18) -> 0 | G18: 0 | H18: 0 | I18: 0 | J18: 0 | K18: 0 | L18: 0 | M18: 0 | N18: ='INVOICE 12'!N18 -> 2nd Advance [enter date]
A19: Equipment / Fixed Assets | B19: ='INVOICE 12'!B19 -> 7000 | C19: ='INVOICE 12'!C19 -> 0 | D19: 7000 | E19: =SUM('INVOICE 12'!E19,'INVOICE 12'!H19) -> 0 | F19: =SUM('INVOICE 12'!F19,'INVOICE 12'!I19) -> 0 | G19: 0 | H19: 0 | I19: 0 | J19: 0 | K19: 7000 | L19: 0 | M19: 7000 | N19: ='INVOICE 12'!N19 -> 0
A20: Data Collection & Progress Reporting | B20: ='INVOICE 12'!B20 -> 18950 | C20: ='INVOICE 12'!C20 -> 0 | D20: 18950 | E20: =SUM('INVOICE 12'!E20,'INVOICE 12'!H20) -> 0 | F20: =SUM('INVOICE 12'!F20,'INVOICE 12'!I20) -> 0 | G20: 0 | H20: 0 | I20: 0 | J20: 0 | K20: 18950 | L20: 0 | M20: 18950
A21: Other (Travel, Training, etc.) | B21: ='INVOICE 12'!B21 -> 5000 | C21: ='INVOICE 12'!C21 -> 0 | D21: 5000 | E21: =SUM('INVOICE 12'!E21,'INVOICE 12'!H21) -> 0 | F21: =SUM('INVOICE 12'!F21,'INVOICE 12'!I21) -> 0 | G21: 0 | H21: 0 | I21: 0 | J21: 0 | K21: 5000 | L21: 0 | M21: 5000 | N21: ='INVOICE 12'!N21 -> 3rd Advance [enter date]
A22: Indirect Costs | B22: ='INVOICE 12'!B22 -> 134250 | C22: ='INVOICE 12'!C22 -> 0 | D22: =SUM(B22:C22) -> 134250 | E22: =SUM('INVOICE 12'!E22,'INVOICE 12'!H22) -> 0 | F22: =SUM('INVOICE 12'!F22,'INVOICE 12'!I22) -> 0 | G22: 0 | H22: 0 | I22: 0 | J22: 0 | K22: 134250 | L22: 0 | M22: 134250 | N22: ='INVOICE 12'!N22 -> 0
A23: TOTAL | B23: =SUM(B15:B22) -> 3000000 | C23: 0 | D23: 3000000 | E23: 0 | F23: 0 | G23: 0 | H23: 0 | I23: 0 | J23: 0 | K23: 3000000 | L23: 0 | M23: 3000000 | N23: =SUM(N16+N19+N22) -> 1000000
A25: Project Income | C25: Income reported to date | D25: ='INVOICE 12'!D25+I25 -> 0 | F25: Prior allocated income | G25: 0 | H25: This Period | I25: 0 | L25: Unallocated income balance | M25: =D25-G25 -> 0
C27: Grant funds expended to date: | D27: =SUM(E23,H23) -> 0 | G27: Grant funds claimed this period: | H27: =H23 -> 0 | L27: Percent of total disbursed
G28: Advance Disbursement Balance: | H28: =N23-D27 -> 1000000 | L28: funds expended to date: | N28: =D27/N23 -> 0
D32: Expenditure Descriptions - Units / $ Amounts | L32: Comments
A33: Salaries & Benefits | B33: Grant Funds | C33: =H15 -> 0
B34: Project Income | C34: =I15 -> 0
A35: Services & Supplies | B35: Grant Funds | C35: =H16 -> 0
B36: Project Income | C36: =I16 -> 0
A37: Professional Services | B37: Grant Funds | C37: =H17 -> 0
B38: Project Income | C38: =I17 -> 0
A39: NGO Subcontracts | B39: Grant Funds | C39: =H18 -> 0
B40: Project Income | C40: =I18 -> 0
A41: Equipment / Fixed Assets | B41: Grant Funds | C41: =H19 -> 0
B42: Project Income | C42: =I19 -> 0
A43: Data Collection & Progress Reporting | B43: Grant Funds | C43: =H20 -> 0
B44: Project Income | C44: =I20 -> 0
A45: Other (Travel, Training, etc.) | B45: Grant Funds | C45: =H21 -> 0
B46: Project Income | C46: =I21 -> 0
A47: Indirect Costs | B47: Grant Funds | C47: =H22 -> 0
B48: Project Income | C48: =I22 -> 0
A49: Project Income Earned | C49: =I25 -> 0
A50: PERSON PREPARING REPORT | E50: AUTHORIZED FINANCIAL OFFICER | L50: BSCC Supplier Data - Internal Use Only
E51: By checking the box below, I hereby certify that I am the authorized financial officer of the herein named agency. I further certify that I have not violated any of the provisions of Section 1090 of the Government Code in incurring the expenditures reported in this invoice, nor in any other way; that Sections 1090 through 1096 of the Government Code will not be violated in any way in the expenditure of funds pursuant to this invoice; that statement of funds above is true, correct, and in accordance with program provisions in all respects; and that all expenditures submitted after the expiration date of this contract are for the purpose of substantiating obligations legally incurred during the contract period. Furthermore, by submitting this invoice, I acknowledge that it must adhere to all of the requirements in the BSCC Grant Administration Guide, including any updates to the Guide during the term of the grant agreement.
L52: ='INVOICE 12'!L52:N52 -> 146536
A53: Name, Title | L53: Supplier ID
L54: ='INVOICE 12'!L54:N54 -> VICTORVALL-020
A55: Phone | L55: Supplier Name
L56: ='INVOICE 12'!L56:N56 -> P.O. Box 1248
A57: Email | L57: Address Line 1
L58: ='INVOICE 12'!L58:N58 -> Victorville, CA 92393
A59: Date | L59: Address Line 2
E62: Name, Title
E64: Phone
E66: Date
A68: BSCC USE ONLY
A69: Date Received: | G69: Approved By: | M69: Date:
I70: BSCC Field Representative

Sheet INVOICE 14
A1: STATE OF CALIFORNIA | L1: Purchase Authority: 5227
A2: BOARD OF STATE AND COMMUNITY CORRECTIONS | L2: ='INVOICE 13'!L2:N2 -> Purchase Order: 2928
A3: Financial Invoice - Form BSCC 201 (Revised 06/2020)
A5: Program: | B5: Adult Reentry Grant | K5: Please Note: The California State Controller's Office will send all checks directly to the address listed in the "BSCC Supplier Data" section at the bottom of this invoice.
A7: Grantee: | B7: ='INVOICE 13'!B7 -> Victor Valley Family Resource Center | F7: Project Title: | G7: ='INVOICE 13'!G7:I7 -> RA
A9: Contract #: | B9: ='INVOICE 13'!B9 -> BSCC 430-19 | D9: Term: | E9: 2019-08-01 | F9: TO | G9: 2023-02-28 | L9: Invoicing Frequency | M9: Quarterly
A11: Invoice #: | B11: 14 | D11: Reporting Period: | E11: 2022-10-01 | F11: TO | G11: 2022-12-31 | H11: Due: | I11: 2023-02-15 | L11: Final Invoice (Y/N): | M11: No
A13: Line Items | B13: Budget | E13: Prior Expenditures | H13: This Reporting Period | K13: Balance | N13: Advance Disbursements
B14: Grant Funds | C14: Project Income | D14: TOTAL | E14: Grant Funds | F14: Project Income | G14: TOTAL | H14: Grant Funds | I14: Project Income | J14: TOTAL | K14: Grant Funds | L14: Project Income | M14: TOTAL
A15: Salaries & Benefits | B15: ='INVOICE 13'!B15 -> 684800 | C15: ='INVOICE 13'!C15 -> 0 | D15: =SUM(B15:C15) -> 684800 | E15: =SUM('INVOICE 13'!E15,'INVOICE 13'!H15) -> 0 | F15: =SUM('INVOICE 13'!F15,'INVOICE 13'!I15) -> 0 | G15: =SUM(E15:F15) -> 0 | H15: 0 | I15: 0 | J15: =SUM(H15:I15) -> 0 | K15: =B15-E15-H15 -> 684800 | L15: 0 | M15: =SUM(K15:L15) -> 684800 | N15: ='INVOICE 13'!N15 -> 1st Advance [3/6/20]
A16: Services & Supplies | B16: ='INVOICE 13'!B16 -> 2150000 | C16: ='INVOICE 13'!C16 -> 0 | D16: 2150000 | E16: =SUM('INVOICE 13'!E16,'INVOICE 13'!H16) -> 0 | F16: =SUM('INVOICE 13'!F16,'INVOICE 13'!I16) -> 0 | G16: =SUM(E16:F16) -> 0 | H16: 0 | I16: 0 | J16: 0 | K16: 2150000 | L16: 0 | M16: 2150000 | N16: ='INVOICE 13'!N16 -> 1000000
A17: Professional Services | B17: ='INVOICE 13'!B17 -> 0 | C17: ='INVOICE 13'!C17 -> 0 | D17: 0 | E17: =SUM('INVOICE 13'!E17,'INVOICE 13'!H17) -> 0 | F17: =SUM('INVOICE 13'!F17,'INVOICE 13'!I17) -> 0 | G17: =SUM(E17:F17) -> 0 | H17: 0 | I17: 0 | J17: 0 | K17: 0 | L17: 0 | M17: 0
A18: NGO Subcontracts | B18: ='INVOICE 13'!B18 -> 0 | C18: ='INVOICE 13'!C18 -> 0 | D18: 0 | E18: =SUM('INVOICE 13'!E18,'INVOICE 13'!H18) -> 0 | F18: =SUM('INVOICE 13'!F18,'INVOICE 13'!I18) -> 0 | G18: 0 | H18: 0 | I18: 0 | J18: 0 | K18: 0 | L18: 0 | M18: 0 | N18: ='INVOICE 13'!N18 -> 2nd Advance [enter date]
A19: Equipment / Fixed Assets | B19: ='INVOICE 13'!B19 -> 7000 | C19: ='INVOICE 13'!C19 -> 0 | D19: 7000 | E19: =SUM('INVOICE 13'!E19,'INVOICE 13'!H19) -> 0 | F19: =SUM('INVOICE 13'!F19,'INVOICE 13'!I19) -> 0 | G19: 0 | H19: 0 | I19: 0 | J19: 0 | K19: 7000 | L19: 0 | M19: 7000 | N19: ='INVOICE 13'!N19 -> 0
A20: Data Collection & Progress Reporting | B20: ='INVOICE 13'!B20 -> 18950 | C20: ='INVOICE 13'!C20 -> 0 | D20: 18950 | E20: =SUM('INVOICE 13'!E20,'INVOICE 13'!H20) -> 0 | F20: =SUM('INVOICE 13'!F20,'INVOICE 13'!I20) -> 0 | G20: 0 | H20: 0 | I20: 0 | J20: 0 | K20: 18950 | L20: 0 | M20: 18950
A21: Other (Travel, Training, etc.) | B21: ='INVOICE 13'!B21 -> 5000 | C21: ='INVOICE 13'!C21 -> 0 | D21: 5000 | E21: =SUM('INVOICE 13'!E21,'INVOICE 13'!H21) -> 0 | F21: =SUM('INVOICE 13'!F21,'INVOICE 13'!I21) -> 0 | G21: 0 | H21: 0 | I21: 0 | J21: 0 | K21: 5000 | L21: 0 | M21: 5000 | N21: ='INVOICE 13'!N21 -> 3rd Advance [enter date]
A22: Indirect Costs | B22: ='INVOICE 13'!B22 -> 134250 | C22: ='INVOICE 13'!C22 -> 0 | D22: =SUM(B22:C22) -> 134250 | E22: =SUM('INVOICE 13'!E22,'INVOICE 13'!H22) -> 0 | F22: =SUM('INVOICE 13'!F22,'INVOICE 13'!I22) -> 0 | G22: 0 | H22: 0 | I22: 0 | J22: 0 | K22: 134250 | L22: 0 | M22: 134250 | N22: ='INVOICE 13'!N22 -> 0
A23: TOTAL | B23: =SUM(B15:B22) -> 3000000 | C23: 0 | D23: 3000000 | E23: 0 | F23: 0 | G23: 0 | H23: 0 | I23: 0 | J23: 0 | K23: 3000000 | L23: 0 | M23: 3000000 | N23: =SUM(N16+N19+N22) -> 1000000
A25: Project Income | C25: Income reported to date | D25: ='INVOICE 13'!D25+I25 -> 0 | F25: Prior allocated income | G25: 0 | H25: This Period | I25: 0 | L25: Unallocated income balance | M25: =D25-G25 -> 0
C27: Grant funds expended to date: | D27: =SUM(E23,H23) -> 0 | G27: Grant funds claimed this period: | H27: =H23 -> 0 | L27: Percent of total disbursed
G28: Advance Disbursement Balance: | H28: =N23-D27 -> 1000000 | L28: funds expended to date: | N28: =D27/N23 -> 0
D32: Expenditure Descriptions - Units / $ Amounts | L32: Comments
A33: Salaries & Benefits | B33: Grant Funds | C33: =H15 -> 0
B34: Project Income | C34: =I15 -> 0
A35: Services & Supplies | B35: Grant Funds | C35: =H16 -> 0
B36: Project Income | C36: =I16 -> 0
A37: Professional Services | B37: Grant Funds | C37: =H17 -> 0
B38: Project Income | C38: =I17 -> 0
A39: NGO Subcontracts | B39: Grant Funds | C39: =H18 -> 0
B40: Project Income | C40: =I18 -> 0
A41: Equipment / Fixed Assets | B41: Grant Funds | C41: =H19 -> 0
B42: Project Income | C42: =I19 -> 0
A43: Data Collection & Progress Reporting | B43: Grant Funds | C43: =H20 -> 0
B44: Project Income | C44: =I20 -> 0
A45: Other (Travel, Training, etc.) | B45: Grant Funds | C45: =H21 -> 0
B46: Project Income | C46: =I21 -> 0
A47: Indirect Costs | B47: Grant Funds | C47: =H22 -> 0
B48: Project Income | C48: =I22 -> 0
A49: Project Income Earned | C49: =I25 -> 0
A50: PERSON PREPARING REPORT | E50: AUTHORIZED FINANCIAL OFFICER | L50: BSCC Supplier Data - Internal Use Only
E51: By checking the box below, I hereby certify that I am the authorized financial officer of the herein named agency. I further certify that I have not violated any of the provisions of Section 1090 of the Government Code in incurring the expenditures reported in this invoice, nor in any other way; that Sections 1090 through 1096 of the Government Code will not be violated in any way in the expenditure of funds pursuant to this invoice; that statement of funds above is true, correct, and in accordance with program provisions in all respects; and that all expenditures submitted after the expiration date of this contract are for the purpose of substantiating obligations legally incurred during the contract period. Furthermore, by submitting this invoice, I acknowledge that it must adhere to all of the requirements in the BSCC Grant Administration Guide, including any updates to the Guide during the term of the grant agreement.
L52: ='INVOICE 13'!L52:N52 -> 146536
A53: Name, Title | L53: Supplier ID
L54: ='INVOICE 13'!L54:N54 -> VICTORVALL-020
A55: Phone | L55: Supplier Name
L56: ='INVOICE 13'!L56:N56 -> P.O. Box 1248
A57: Email | L57: Address Line 1
L58: ='INVOICE 13'!L58:N58 -> Victorville, CA 92393
A59: Date | L59: Address Line 2
E62: Name, Title
E64: Phone
E66: Date
A68: BSCC USE ONLY
A69: Date Received: | G69: Approved By: | M69: Date:
I70: BSCC Field Representative

Sheet INVOICE 15
A1: STATE OF CALIFORNIA | L1: Purchase Authority: 5227
A2: BOARD OF STATE AND COMMUNITY CORRECTIONS | L2: ='INVOICE 14'!L2:N2 -> Purchase Order: 2928
A3: Financial Invoice - Form BSCC 201 (Revised 06/2020)
A5: Program: | B5: Adult Reentry Grant | K5: Please Note: The California State Controller's Office will send all checks directly to the address listed in the "BSCC Supplier Data" section at the bottom of this invoice.
A7: Grantee: | B7: ='INVOICE 14'!B7 -> Victor Valley Family Resource Center | F7: Project Title: | G7: ='INVOICE 14'!G7:I7 -> RA
A9: Contract #: | B9: ='INVOICE 14'!B9 -> BSCC 430-19 | D9: Term: | E9: 2019-08-01 | F9: TO | G9: 2023-02-28 | L9: Invoicing Frequency | M9: Quarterly
A11: Invoice #: | B11: 15 | D11: Reporting Period: | E11: 2023-01-01 | F11: TO | G11: 2023-02-28 | H11: Due: | I11: 2023-04-14 | L11: Final Invoice (Y/N): | M11: Yes
A13: Line Items | B13: Budget | E13: Prior Expenditures | H13: This Reporting Period | K13: Balance | N13: Advance Disbursements
B14: Grant Funds | C14: Project Income | D14: TOTAL | E14: Grant Funds | F14: Project Income | G14: TOTAL | H14: Grant Funds | I14: Project Income | J14: TOTAL | K14: Grant Funds | L14: Project Income | M14: TOTAL
A15: Salaries & Benefits | B15: ='INVOICE 14'!B15 -> 684800 | C15: ='INVOICE 14'!C15 -> 0 | D15: =SUM(B15:C15) -> 684800 | E15: =SUM('INVOICE 14'!E15,'INVOICE 14'!H15) -> 0 | F15: =SUM('INVOICE 14'!F15,'INVOICE 14'!I15) -> 0 | G15: =SUM(E15:F15) -> 0 | H15: 0 | I15: 0 | J15: =SUM(H15:I15) -> 0 | K15: =B15-E15-H15 -> 684800 | L15: 0 | M15: =SUM(K15:L15) -> 684800 | N15: ='INVOICE 14'!N15 -> 1st Advance [3/6/20]
A16: Services & Supplies | B16: ='INVOICE 14'!B16 -> 2150000 | C16: ='INVOICE 14'!C16 -> 0 | D16: 2150000 | E16: =SUM('INVOICE 14'!E16,'INVOICE 14'!H16) -> 0 | F16: =SUM('INVOICE 14'!F16,'INVOICE 14'!I16) -> 0 | G16: =SUM(E16:F16) -> 0 | H16: 0 | I16: 0 | J16: 0 | K16: 2150000 | L16: 0 | M16: 2150000 | N16: ='INVOICE 14'!N16 -> 1000000
A17: Professional Services | B17: ='INVOICE 14'!B17 -> 0 | C17: ='INVOICE 14'!C17 -> 0 | D17: 0 | E17: =SUM('INVOICE 14'!E17,'INVOICE 14'!H17) -> 0 | F17: =SUM('INVOICE 14'!F17,'INVOICE 14'!I17) -> 0 | G17: =SUM(E17:F17) -> 0 | H17: 0 | I17: 0 | J17: 0 | K17: 0 | L17: 0 | M17: 0
A18: NGO Subcontracts | B18: ='INVOICE 14'!B18 -> 0 | C18: ='INVOICE 14'!C18 -> 0 | D18: 0 | E18: =SUM('INVOICE 14'!E18,'INVOICE 14'!H18) -> 0 | F18: =SUM('INVOICE 14'!F18,'INVOICE 14'!I18) -> 0 | G18: 0 | H18: 0 | I18: 0 | J18: 0 | K18: 0 | L18: 0 | M18: 0 | N18: ='INVOICE 14'!N18 -> 2nd Advance [enter date]
A19: Equipment / Fixed Assets | B19: ='INVOICE 14'!B19 -> 7000 | C19: ='INVOICE 14'!C19 -> 0 | D19: 7000 | E19: =SUM('INVOICE 14'!E19,'INVOICE 14'!H19) -> 0 | F19: =SUM('INVOICE 14'!F19,'INVOICE 14'!I19) -> 0 | G19: 0 | H19: 0 | I19: 0 | J19: 0 | K19: 7000 | L19: 0 | M19: 7000 | N19: ='INVOICE 14'!N19 -> 0
A20: Data Collection & Progress Reporting | B20: ='INVOICE 14'!B20 -> 18950 | C20: ='INVOICE 14'!C20 -> 0 | D20: 18950 | E20: =SUM('INVOICE 14'!E20,'INVOICE 14'!H20) -> 0 | F20: =SUM('INVOICE 14'!F20,'INVOICE 14'!I20) -> 0 | G20: 0 | H20: 0 | I20: 0 | J20: 0 | K20: 18950 | L20: 0 | M20: 18950
A21: Other (Travel, Training, etc.) | B21: ='INVOICE 14'!B21 -> 5000 | C21: ='INVOICE 14'!C21 -> 0 | D21: 5000 | E21: =SUM('INVOICE 14'!E21,'INVOICE 14'!H21) -> 0 | F21: =SUM('INVOICE 14'!F21,'INVOICE 14'!I21) -> 0 | G21: 0 | H21: 0 | I21: 0 | J21: 0 | K21: 5000 | L21: 0 | M21: 5000 | N21: ='INVOICE 14'!N21 -> 3rd Advance [enter date]
A22: Indirect Costs | B22: ='INVOICE 14'!B22 -> 134250 | C22: ='INVOICE 14'!C22 -> 0 | D22: =SUM(B22:C22) -> 134250 | E22: =SUM('INVOICE 14'!E22,'INVOICE 14'!H22) -> 0 | F22: =SUM('INVOICE 14'!F22,'INVOICE 14'!I22) -> 0 | G22: 0 | H22: 0 | I22: 0 | J22: 0 | K22: 134250 | L22: 0 | M22: 134250 | N22: ='INVOICE 14'!N22 -> 0
A23: TOTAL | B23: =SUM(B15:B22) -> 3000000 | C23: 0 | D23: 3000000 | E23: 0 | F23: 0 | G23: 0 | H23: 0 | I23: 0 | J23: 0 | K23: 3000000 | L23: 0 | M23: 3000000 | N23: =SUM(N16+N19+N22) -> 1000000
A25: Project Income | C25: Income reported to date | D25: ='INVOICE 14'!D25+I25 -> 0 | F25: Prior allocated income | G25: 0 | H25: This Period | I25: 0 | L25: Unallocated income balance | M25: =D25-G25 -> 0
C27: Grant funds expended to date: | D27: =SUM(E23,H23) -> 0 | G27: Grant funds claimed this period: | H27: =H23 -> 0 | L27: Percent of total disbursed
G28: Advance Disbursement Balance: | H28: =N23-D27 -> 1000000 | L28: funds expended to date: | N28: =D27/N23 -> 0
D32: Expenditure Descriptions - Units / $ Amounts | L32: Comments
A33: Salaries & Benefits | B33: Grant Funds | C33: =H15 -> 0
B34: Project Income | C34: =I15 -> 0
A35: Services & Supplies | B35: Grant Funds | C35: =H16 -> 0
B36: Project Income | C36: =I16 -> 0
A37: Professional Services | B37: Grant Funds | C37: =H17 -> 0
B38: Project Income | C38: =I17 -> 0
A39: NGO Subcontracts | B39: Grant Funds | C39: =H18 -> 0
B40: Project Income | C40: =I18 -> 0
A41: Equipment / Fixed Assets | B41: Grant Funds | C41: =H19 -> 0
B42: Project Income | C42: =I19 -> 0
A43: Data Collection & Progress Reporting | B43: Grant Funds | C43: =H20 -> 0
B44: Project Income | C44: =I20 -> 0
A45: Other (Travel, Training, etc.) | B45: Grant Funds | C45: =H21 -> 0
B46: Project Income | C46: =I21 -> 0
A47: Indirect Costs | B47: Grant Funds | C47: =H22 -> 0
B48: Project Income | C48: =I22 -> 0
A49: Project Income Earned | C49: =I25 -> 0
A50: PERSON PREPARING REPORT | E50: AUTHORIZED FINANCIAL OFFICER | L50: BSCC Supplier Data - Internal Use Only
E51: By checking the box below, I hereby certify that I am the authorized financial officer of the herein named agency. I further certify that I have not violated any of the provisions of Section 1090 of the Government Code in incurring the expenditures reported in this invoice, nor in any other way; that Sections 1090 through 1096 of the Government Code will not be violated in any way in the expenditure of funds pursuant to this invoice; that statement of funds above is true, correct, and in accordance with program provisions in all respects; and that all expenditures submitted after the expiration date of this contract are for the purpose of substantiating obligations legally incurred during the contract period. Furthermore, by submitting this invoice, I acknowledge that it must adhere to all of the requirements in the BSCC Grant Administration Guide, including any updates to the Guide during the term of the grant agreement.
L52: ='INVOICE 14'!L52:N52 -> 146536
A53: Name, Title | L53: Supplier ID
L54: ='INVOICE 14'!L54:N54 -> VICTORVALL-020
A55: Phone | L55: Supplier Name
L56: ='INVOICE 14'!L56:N56 -> P.O. Box 1248
A57: Email | L57: Address Line 1
L58: ='INVOICE 14'!L58:N58 -> Victorville, CA 92393
A59: Date | L59: Address Line 2
E62: Name, Title
E64: Phone
E66: Date
A68: BSCC USE ONLY
A69: Date Received: | G69: Approved By: | M69: Date:
I70: BSCC Field Representative

Sheet 2nd Advance Payment
A1: STATE OF CALIFORNIA | J1: Purchase Authority: 5227
A2: BOARD OF STATE AND COMMUNITY CORRECTIONS | J2: ='INVOICE 15'!L2 -> Purchase Order: 2928
A3: Advance Payment Invoice - Form BSCC 201A (Revised 06/2020)
B6: Program: | C6: ='INVOICE 1'!B5 -> Adult Reentry Grant | H6: Grantee: | I6: ='INVOICE 15'!B7 -> Victor Valley Family Resource Center
B8: Contract #: | C8: ='INVOICE 15'!B9 -> BSCC 430-19 | H8: Address | I8: ='INVOICE 15'!L56 -> P.O. Box 1248
J9: Address Line 1
B10: Term: | C10: ='INVOICE 1'!E9 -> 2019-08-01 | D10: TO | E10: ='INVOICE 1'!G9 -> 2023-02-28 | I10: ='INVOICE 15'!L58 -> Victorville, CA 92393
J11: Address Line 2
B13: Advance Payment # | C13: 2 RA 2019 | G13: Please Note: The California State Controller's Office will send all checks directly to the address listed in the "BSCC Supplier Data" section at the bottom of this invoice.
B15: Effective Invoice #
A18: Advance Payment Invoice
J19: Total Grant Award: | K19: ='1st Advance Payment'!K19 -> 3000000
J20: 2nd Advance Total: | K20: =SUM(ROUNDUP(K19/3,0)) -> 1000000
J21: Grant Award Balance: | K21: =SUM(ROUNDDOWN('1st Advance Payment'!K19-'1st Advance Payment'!K20-'2nd Advance Payment'!K20,0)) -> 1000000
B25: PERSON PREPARING REPORT | G25: AUTHORIZED FINANCIAL OFFICER
G26: I hereby certify that I am the authorized financial officer of the herein named agency. I further certify that I have not violated any of the provisions of Section 1090 of the Government Code in incurring the expenditures reported in this invoice, nor in any other way; that Sections 1090 through 1096 of the Government Code will not be violated in any way in the expenditure of funds pursuant to this invoice; that statement of funds above is true, correct, and in accordance with program provisions in all respects; and that all expenditures submitted after the expiration date of this contract are for the purpose of substantiating obligations legally incurred during the contract period. Furthermore, by submitting this invoice, I acknowledge that it must adhere to all of the requirements in the BSCC Grant Administration Guide, including any updates to the Guide during the term of the grant agreement.
B27: Name, Title
B29: Phone
B31: Email
B33: Date
G36: Name, Title
G38: Phone
G40: Email
G42: Date
G44: Signature
F48: BSCC USE ONLY
B50: Approved By: | J50: BSCC Supplier Data
C51: BSCC Field Representative | I51: ='INVOICE 15'!L54 -> VICTORVALL-020
J52: Supplier Name
B53: Date: | I53: ='INVOICE 15'!L52 -> 146536
J54: Supplier Number

Sheet 3rd Advance Payment
A1: STATE OF CALIFORNIA | J1: Purchase Authority: 5227
A2: BOARD OF STATE AND COMMUNITY CORRECTIONS | J2: ='INVOICE 15'!L2 -> Purchase Order: 2928
A3: Advance Payment Invoice - Form BSCC 201A (Revised 06/2020)
B6: Program: | C6: ='INVOICE 1'!B5 -> Adult Reentry Grant | H6: Grantee: | I6: ='INVOICE 15'!B7 -> Victor Valley Family Resource Center
B8: Contract #: | C8: ='INVOICE 15'!B9 -> BSCC 430-19 | H8: Address | I8: ='INVOICE 15'!L56 -> P.O. Box 1248
J9: Address Line 1
B10: Term: | C10: ='INVOICE 1'!E9 -> 2019-08-01 | D10: TO | E10: ='INVOICE 1'!G9 -> 2023-02-28 | I10: ='INVOICE 15'!L58 -> Victorville, CA 92393
J11: Address Line 2
B13: Advance Payment # | C13: 3 RA 2019 | G13: Please Note: The California State Controller's Office will send all checks directly to the address listed in the "BSCC Supplier Data" section at the bottom of this invoice.
B15: Effective Invoice #
A18: Advance Payment Invoice
J19: Total Grant Award: | K19: ='1st Advance Payment'!K19 -> 3000000
J20: Advance Total Dispursed To Date: | K20: =SUM(ROUNDUP('1st Advance Payment'!K20:L20+'2nd Advance Payment'!K20:L20,0)) -> 2000000
J21: Final Advance Total: | K21: =K19-K20 -> 1000000
B25: PERSON PREPARING REPORT | G25: AUTHORIZED FINANCIAL OFFICER
G26: I hereby certify that I am the authorized financial officer of the herein named agency. I further certify that I have not violated any of the provisions of Section 1090 of the Government Code in incurring the expenditures reported in this invoice, nor in any other way; that Sections 1090 through 1096 of the Government Code will not be violated in any way in the expenditure of funds pursuant to this invoice; that statement of funds above is true, correct, and in accordance with program provisions in all respects; and that all expenditures submitted after the expiration date of this contract are for the purpose of substantiating obligations legally incurred during the contract period. Furthermore, by submitting this invoice, I acknowledge that it must adhere to all of the requirements in the BSCC Grant Administration Guide, including any updates to the Guide during the term of the grant agreement.
B27: Name, Title
B29: Phone
B31: Email
B33: Date
G36: Name, Title
G38: Phone
G40: Email
G42: Date
G44: Signature
F48: BSCC USE ONLY
B50: Approved By: | J50: BSCC Supplier Data
C51: BSCC Field Representative | I51: ='INVOICE 15'!L54 -> VICTORVALL-020
J52: Supplier Name
B53: Date: | I53: ='INVOICE 15'!L52 -> 146536
J54: Supplier Number

Sheet MODIFICATION REQUEST
M1: STATE OF CALIFORNIA
A2: MODIFICATION REQUEST - (FORM BSCC 223.1 (Revised 04/20) | M2: BOARD OF STATE AND COMMUNITY CORRECTIONS
B5: Line-Item Change | F5: Budget Modification | J5: Project Income Allocation
B6: Check this box if you are modifying narrative details within a line item (or line items) but not changing the budget. | F6: Check this box if you are modifying line-item dollar amounts by moving funds from one line-item to another. | J6: Check this box if you are allocating earned project income.
A8: Important Note: You must provide a detailed justification for all modification requests. All modifications require BSCC Field Representative approval.
A10: Grantee: | B10: ='INVOICE 15'!B7 -> Victor Valley Family Resource Center | I10: Program: | J10: ='INVOICE 1'!B5 -> Adult Reentry Grant
A12: Address | B12: ='INVOICE 15'!L56 -> P.O. Box 1248 | I12: Project Title: | J12: ='INVOICE 15'!G7 -> RA
B14: ='INVOICE 15'!L58 -> Victorville, CA 92393
A16: Contract #: | B16: ='INVOICE 15'!B9 -> BSCC 430-19 | J16: Modification Request #
A18: Term: | B18: ='INVOICE 1'!E9 -> 2019-08-01 | C18: ='INVOICE 1'!F9 -> TO | D18: ='INVOICE 1'!G9 -> 2023-02-28 | J18: Effective on Invoice #
A20: Line Items | B20: Current Budget | E20: Available Budget | H20: Changes (+/-) | K20: Modified Budget
B21: Grant Funds | C21: Project Income | D21: TOTAL | E21: Grant Funds | F21: Project Income | G21: TOTAL | H21: Grant Funds | I21: Project Income | J21: TOTAL | K21: Grant Funds | L21: Project Income | M21: TOTAL
A22: Salaries & Benefits | B22: ='INVOICE 15'!B15 -> 684800 | C22: ='INVOICE 15'!C15 -> 0 | D22: =SUM(B22:C22) -> 684800 | E22: ='INVOICE 15'!K15 -> 684800 | F22: ='INVOICE 15'!L15 -> 0 | G22: =SUM(E22:F22) -> 684800 | H22: 0 | I22: 0 | J22: =SUM(H22:I22) -> 0 | K22: =SUM(B22,H22) -> 684800 | L22: =SUM(C22,I22) -> 0 | M22: =SUM(K22:L22) -> 684800
A23: Services & Supplies | B23: ='INVOICE 15'!B16 -> 2150000 | C23: ='INVOICE 15'!C16 -> 0 | D23: 2150000 | E23: ='INVOICE 15'!K16 -> 2150000 | F23: ='INVOICE 15'!L16 -> 0 | G23: 2150000 | H23: 0 | I23: 0 | J23: 0 | K23: 2150000 | L23: 0 | M23: 2150000
A24: Professional Services | B24: ='INVOICE 15'!B17 -> 0 | C24: ='INVOICE 15'!C17 -> 0 | D24: 0 | E24: ='INVOICE 15'!K17 -> 0 | F24: ='INVOICE 15'!L17 -> 0 | G24: 0 | H24: 0 | I24: 0 | J24: 0 | K24: 0 | L24: 0 | M24: 0
A25: NGO Subcontracts | B25: ='INVOICE 15'!B18 -> 0 | C25: ='INVOICE 15'!C18 -> 0 | D25: 0 | E25: ='INVOICE 15'!K18 -> 0 | F25: ='INVOICE 15'!L18 -> 0 | G25: 0 | H25: 0 | I25: 0 | J25: 0 | K25: 0 | L25: 0 | M25: 0
A26: Equipment / Fixed Assets | B26: ='INVOICE 15'!B19 -> 7000 | C26: ='INVOICE 15'!C19 -> 0 | D26: 7000 | E26: ='INVOICE 15'!K19 -> 7000 | F26: ='INVOICE 15'!L19 -> 0 | G26: 7000 | H26: 0 | I26: 0 | J26: 0 | K26: 7000 | L26: 0 | M26: 7000
A27: Data Collection & Progress Reporting | B27: ='INVOICE 15'!B20 -> 18950 | C27: ='INVOICE 15'!C20 -> 0 | D27: 18950 | E27: ='INVOICE 15'!K20 -> 18950 | F27: ='INVOICE 15'!L20 -> 0 | G27: 18950 | H27: 0 | I27: 0 | J27: 0 | K27: 18950 | L27: 0 | M27: 18950
A28: Other (Travel, Training, etc.) | B28: ='INVOICE 15'!B21 -> 5000 | C28: ='INVOICE 15'!C21 -> 0 | D28: 5000 | E28: ='INVOICE 15'!K21 -> 5000 | F28: ='INVOICE 15'!L21 -> 0 | G28: 5000 | H28: 0 | I28: 0 | J28: 0 | K28: 5000 | L28: 0 | M28: 5000
A29: Indirect Costs | B29: ='INVOICE 15'!B22 -> 134250 | C29: ='INVOICE 15'!C22 -> 0 | D29: 134250 | E29: ='INVOICE 15'!K22 -> 134250 | F29: ='INVOICE 15'!L22 -> 0 | G29: 134250 | H29: 0 | I29: 0 | J29: 0 | K29: 134250 | L29: 0 | M29: 134250
A30: TOTAL | B30: =SUM(B22:B29) -> 3000000 | C30: 0 | D30: 3000000 | E30: 3000000 | F30: 0 | G30: 3000000 | H30: 0 | I30: 0 | J30: 0 | K30: 3000000 | L30: 0 | M30: 3000000
A32: Project Income | C32: Income reported to date | D32: ='INVOICE 15'!D25 -> 0 | F32: Prior allocated income | G32: ='INVOICE 15'!G25 -> 0 | H32: Allocating | I32: =I30 -> 0 | L32: Unallocated income balance | M32: =D32-I32 -> 0
A34: JUSTIFICATION FOR MODIFICATION:
A54: PERSON PREPARING REPORT | I54: AUTHORIZED FINANCIAL OFFICER
I55: I hereby certify that I am the authorized financial officer of the herein named agency. I further certify that I have not violated any of the provisions of Section 1090 of the Government Code in incurring the expenditures reported in this invoice, nor in any other way; that Sections 1090 through 1096 of the Government Code will not be violated in any way in the expenditure of funds pursuant to this invoice; that statement of funds above is true, correct, and in accordance with program provisions in all respects; and that all expenditures submitted after the expiration date of this contract are for the purpose of substantiating obligations legally incurred during the contract period. Furthermore, by submitting this invoice, I acknowledge that it must adhere to all of the requirements in the BSCC Grant Administration Guide, including any updates to the Guide during the term of the grant agreement.
A57: Name, Title
A59: Phone
A61: Email
A63: Date
I66: Name, Title
I68: Phone
I70: Date
A72: BSCC USE ONLY
A73: Date Received: | H73: Approved By: | L73: Date:
I74: BSCC Field Representative

Sheet Project Budget
A2: Project Budget and Budget Narrative for Rental Assistance (UPDATED 3.14.19)
A3: Name of Applicant CBO: | D3: Victor Valley Family Resource Center
A4: Project Budget for Rental Assistance
A5: Original Budget Line Item | G5: Grant Funds
A6: 1. Salaries and Benefits | G6: =G33 -> 684800
A7: 2. Services and Supplies | G7: =G73 -> 2150000
A8: 3. Professional Services | G8: =G109 -> 0
A9: 4. Non-Governmental Organization (NGO) Subcontracts | G9: =G144 -> 0
A10: 5. Equipment/Fixed Assets | G10: =G180 -> 7000
A11: 6. Data Collection and Progress Reporting | G11: =G211 -> 18950
A12: 7. Other (Travel, Training, etc.) | G12: =G247 -> 5000
A13: 8. Indirect Costs | G13: =G278 -> 134250
A14: TOTAL | G14: =SUM(G6:G13) -> 3000000
A17: 1. Salaries and Benefits for Rental Assistance
A18: Name and Title | C18: (% FTE or Hourly Rate) & Benefits | G18: Grant Funds
A19: Example (Hourly): Bob Smith, Fiscal Manager | C19: $60/hour x 10 hours/month x 3 years = $21,600 @ 22% = $4,752 | G19: 4752
A20: Example (FTE): Jane Doe, Counselor | C20: .25 FTE @ $60,000 x 3 years = $45,000 @ 22% = $9,900 | G20: 9900
A21: CEO | C21: 5% FTE @ $ 72,000 x 43 months = $ 154,800 | G21: 154800
A22: EPB Leader (Evidence-Base Program Manager) | C22: 1 FTE @ $45,000 for 40 ms = $150,000 | G22: 150000
A23: Sr. Case Manager | C23: 1 FTE @ $42,000 for 40 ms = $140,000 | G23: 140000
A24: Case Manager - Housing Locator/Navigator | C24: 2 FTE @ $36,000 for 40 ms = $240,000 | G24: 240000
G25: 0
G26: 0
G27: 0
G28: 0
G29: 0
G30: 0
G31: 0
G32: 0
A33: TOTAL | G33: =SUM(G21:G32) -> 684800
A35: Salaries and Benefits Narrative for Rental Assistance:
A36: CEO - Program administration; ensures funds are expended according to contract; invoicing, contract compliance, budget review, plan goals for resources. Evidence Based Program Leader - puts evidence based program into practice; manages implementation of Rental Assistance Program, manages program ata, develops & maintains business model; oversees core program activities, incl. hiring, supervising, training staff. Oversees and coordinates outreach, participant recruitment. Sr. Case Mgr - provides CM services on-site; implements evidence based practices to engage and assist tenants in addressing behaviors that could lead to eviction; assists in accessing other housing, such as critical time intervention, trauma-informed care, motivational interviewing, assertive community treatment, cognitive behavioral therapy; assists clients to gain independence through life skills; provides intensive case management in coordination and alignment with Housing First, voluntary self-sufficiency model; develops, updates Individual Case Plan with program participants, using family case management approach, assists clients to set and prioritize short and long term goals; completes monthly home visits to support clients in performing tasks required to maintain housing stability. Case Managers - Housing Locator/Navigator - They will work closely with potential land lords/property managers to promote permanent housing opportunities for homeless re-entry individuals and families using VVFR services; conduct outreach and provide educational information regarding rental subsidies, security deposit assistance, cost savings via low tenant turnover, and a 90% or higher housing retention rate; implement evidence based practices to engage and assist tenants in addressing behaviors that may lead to eviction, or to assist in accessing other housing, such as critical time intervention, trauma-informed care, motivational interviewing, assertive community treatment, cognitive behavioral therapy; maintain client data tracking system, including case notes and HMIS entries; review ViSpdat scores and match clients to housing type via CES protocols.
A61: MOD x APPROVAL DATE:
A63: 2. Services and Supplies for Rental Assistance
A64: Description of Services or Supplies | C64: Calculation for Expenditure | G64: Grant Funds
A65: Example: Supportive Services (bus passes, gas cards, office supplies, uniforms) | C65: $350 x 50 Participants | G65: 17500
A66: One-time Emergency causing housing instability | C66: back rent, car repair, medical bills, etc for 220 part @ $1636=$360,000 | G66: 360000
A67: Emergency Shelter incl stabilization services | C67: emergency shelter for 100 clients up to 90 days @ $65/day =$585,000 | G67: 585000
A68: Landlord Incentives | C68: funds to secure rental unit, $1,000 for 50 ms = $50,000 | G68: 50000
A69: Permanent Supportive Housing Subsidies | C69: rent subsidies 40 participants @ $24,000 (max) = $960,000 | G69: 960000
A70: Utility Deposits | C70: 1-time asst past due utility bills, 200 part @ $150 = $30,000 | G70: 30000
A71: Rental Application fees | C71: applying for rental unit. $50 per app, 3 app for 100 part = $15,000 | G71: 15000
A72: Security Deposit | C72: payment of all or part of security deposit, 50 part $3,000 = $150,000 | G72: 150000
A73: TOTAL | G73: =SUM(G66:G72) -> 2150000
A75: Services and Supplies Narrative for Rental Assistance:
A76: One time emergency - this includes back rent to avoid eviction; any unexpected expense, such as a medical bill, car repair, so the participant can maintain the housing they currently occupy; back rent payments would max out at $2,000 per participant; other emergencies will max out at $1,200 per particpant. Emergency Shelter - up to 90 days of emergency housing, including case management, housing location/navigation, employment services/job readiness, and other services as needed. Landlord incentives - this will include paying the landlord for a possible empty unit to keep the unit available for a participant; paying for repair of any damage done by the participant; incentives will keep the landlord willing to rent to our program. Permanent Supportive Housing subsidies - payment of rent subsidy (up to 100% of the rent) for permanent housing plus wrap around services. Utility Deposits - one time payment to assist with past-due utility bill, up to $150 per household. Rental Application Fees - Assistance to offset the cost of applying for a rental unit. Up to $50 per application, and a maximum of 3 applications per household. Security Deposit - payment of all or part of the required security deposit, up to 2x rent forunfurnished and x rent for furnished unit.
A97: MOD x APPROVAL DATE:
A99: 3. Professional Services for Rental Assistance
A100: Description of Professional Service(s) | C100: Calculation for Expenditure | G100: Grant Funds
A101: Example: Public Defender | C101: Statewide Program Rate | G101: 15000
G102: 0
G103: 0
G104: 0
G105: 0
G106: 0
G107: 0
G108: 0
A109: TOTAL | G109: =SUM(G102:G108) -> 0
A111: Professional Services Narrative for Rental Assistance:
A132: MOD x APPROVAL DATE:
A134: 4. Non-Governmental Organizations (NGO) Subcontracts for Rental Assistance
A135: Description of Subcontract | C135: Calculation for Expenditure | G135: Grant Funds
A136: Example: Private Industrial Council | C136: Training Class $450 x 25 participants | G136: 11250
G137: 0
G138: 0
G139: 0
G140: 0
G141: 0
G142: 0
G143: 0
A144: TOTALS | G144: =SUM(G137:G143) -> 0
A146: Non-Governmental Organizations (NGO) Subcontracts Narrative for Rental Assistance:
A168: MOD x APPROVAL DATE:
A170: 5. Equipment/Fixed Assets for Rental Assistance
A171: Description of Equipment/Fixed Asset | C171: Calculation for Expense | G171: Grant Funds
A172: Example: Purchase of Vehicle | C172: Toyota Prius @ Market Value | G172: 24000
A173: purchase of laptop computers for staff | C173: 5 laptop computers/software @ $1,400 | G173: 7000
G174: 0
G175: 0
G176: 0
G177: 0
G178: 0
G179: 0
A180: TOTALS | G180: =SUM(G173:G179) -> 7000
A182: Equipment/Fixed Assets Narrative for Rental Assistance:
A183: Lap top computers, including the appropriate software and net connection, are critical, so staff can take them when they do outreach, visit the clients.
A201: MOD x APPROVAL DATE:
A203: 6. Data Collection and Progress Reporting for Rental Assistance
A204: Description | G204: Grant Funds
A205: Example: Data Collection & Reporting Efforts @ 7% | G205: 10329
A206: Data Collection and Reporting Efforts @ 50% FTE @ $37,950 | G206: 18950
G207: 0
G208: 0
G209: 0
G210: 0
A211: TOTAL | G211: =SUM(G206:G210) -> 18950
A213: Data Collection and Progress Reporting Narrative for Rental Assistance:
A214: Enter HMIS (Homeless Management Information Systems) withing 24 hours of intake or participant activity. Prepare data spreadsheets for statistical analysis, prepare pre/post participant evaluations. Prepare data of # of participants housed, Data # on the number of participants
A236: MOD x APPROVAL DATE:
A238: 7. Other (Travel, Training, etc.) for Rental Assistance
A239: Description | C239: Calculation for Expense | G239: Grant Funds
A240: Example: Training Classes | C240: $500/partipant x 30 participants | G240: 15000
A241: BSCC training - mandatory | C241: 5 staff members travel to Sacramento @ $1,000 | G241: 5000
G242: 0
G243: 0
G244: 0
G245: 0
G246: 0
A247: TOTAL | G247: =SUM(G241:G246) -> 5000
A249: Other (Travel, Training, etc.) Narrative for Rental Assistance:
A250: This will cover the travel for mandatory training in Sacramento.
A272: MOD x APPROVAL DATE:
A274: 8. Indirect Costs for Rental Assistance
A275: For this grant program, indirect costs may be charged using only one of the two options below: | G275: Grant Funds
A276: 1. Indirect costs will be charged as 10% of total direct salaries and wages, not to exceed: | F276: =G33*10% -> 68480 | G276: 0
A277: 2. Indirect costs will be charged as 5% of direct total direct project costs (except equipment) not to exceed: | F277: =SUM(G247,G211,G144,G109,G73,G33)*5% -> 142937.5 | G277: 134250
A278: If the amount entered above turns red, please adjust it to not exceed the line-item limit noted: TOTAL | G278: =SUM(G276:G277) -> 134250
A280: Indirect Costs Narrative for Rental Assistance:
A330: MOD x APPROVAL DATE:

Sheet INVOICE DUE DATES
A1: Invoice # | B1: Reporting Period | C1: Due Date
A2: Invoice 1 | B2: August 1, 2019 to September 30, 2019 | C2: 2019-11-15
A3: Invoice 2 | B3: October 1, 2019 to December 31, 2019 | C3: 2020-02-14
A4: Invoice 3 | B4: January 1, 2020 to March 31, 2020 | C4: 2020-05-15
A5: Invoice 4 | B5: April 1, 2020 to June 30, 2020 | C5: 2020-08-14
A6: Invoice 5 | B6: July 1, 2020 to September 30, 2020 | C6: 2020-11-16
A7: Invoice 6 | B7: October 1, 2020 to December 31, 2020 | C7: 2021-02-15
A8: Invoice 7 | B8: January 1, 2021 to March 31, 2021 | C8: 2021-05-14
A9: Invoice 8 | B9: April 1, 2021 to June 30, 2021 | C9: 2021-08-16
A10: Invoice 9 | B10: July 1, 2021 to September 30, 2021 | C10: 2021-11-15
A11: Invoice 10 | B11: October 1, 2021 to December 31, 2021 | C11: 2022-05-15
A12: Invoice 11 | B12: January 1, 2022 to March 31, 2022 | C12: 2022-05-16
A13: Invoice 12 | B13: April 1, 2022 to June 30, 2022 | C13: 2022-08-15
A14: Invoice 13 | B14: July 1, 2022 to September 30, 2022 | C14: 2022-11-15
A15: Invoice 14 | B15: October 1, 2022 to December 31, 2022 | C15: 2023-02-15
A16: Invoice 15 | B16: January 1, 2023 to February 28, 2023 | C16: 2023-04-14

Sheet INSTRUCTIONS
A1: Invoice Workbook
A3: How to Locate the Invoice Workbook
A4: Invoice workbooks are located on the Board of State and Community Corrections (BSCC) website under the Corrections Planning and Grant Programs Division (CPGP) webpage: http://www.bscc.ca.gov/s_correctionsplanningandprograms/.
A6: On the CPGP webpage, locate the CPGP Quick Links and select Grantee Invoicing.
A8: Invoice Workbooks are located under the respective grantee program (e.g., California Violence Intervention and Prevention, Edward Byrne Memorial Justice Assistance Grant, Law Enforcement Assisted Diversion, Proposition 47, etc.).
A10: How to Save the Invoice Workbook
A11: Right click on the file and select Save Link as. This will navigate the grantee to their computer files. The grantee shall navigate to a folder where they would like to save their Invoice Workbook. Do not rename the file.
A13: The grantee should then exit the web browser and work directly from the saved file.
A15: Prior to each reporting period, it is the grantee’s responsibility to download and save the Invoice Workbook to their local computer. This will ensure the most current budget information is being used in the Invoice Workbook.
A17: Forms Included in the Invoice Workbook
A18: The Invoice Workbook is an Excel file arranged by worksheet tabs (located along the bottom). The tabs included in the Invoice workbook are listed below:
A19:  Invoice (Form BSCC 201) for each reporting period;
A20:  Advance Payment (Form BSCC 201) for each of three advance disbursements;
A21:  Modification Request (Form BSCC 223.1 Rev 4/20);
A22:  Original Budget
A23:  Project Budget Narrative
A24:  Invoice Due Dates
A25:  Instructions.
A27: Passwords and Formulas in the Invoice Workbook
A28: Each time the grantee opens the Invoice workbook, they will be prompted to enter a password. The password is the grant agreement number (e.g. 990-19, include the -, do not include BSCC).
A30: The Invoice Workbook has specific functions which require macros to be enabled. A macro is a series of commands, such as calculations, that are stored within the document for tasks performed repeatedly. In most cases, Excel will prompt the grantee to enable macros. When this prompt appears, select Enable Editing then Enable Content. Enabling macros for the Invoice Workbook will not compromise the security of the local system nor the security of the agency's network.
A33: Financial Invoice - Form BSCC 201
A35: How to Complete a Financial Invoice
A36: Each Financial Invoice has a separate workbook tab titled, INVOICE #. The Financial Invoice will allow grantees to enter data into the green-shaded fields; all other fields are locked.
A38: The following instructions are for the green-shaded fields the Invoice to be completed by the Grantee.
A40: THIS REPORTING PERIOD
A41: The grantee shall enter the line item expenditures incurred and project income earned during the reporting period.
A42: All expenditures should be rounded to the nearest whole dollar; do not enter decimals.
A43: If an amount entered into a cell is greater than the available balance, an Invalid Dollar error message will appear. If the error is typographical, select Retry and enter the correct amount. If the amount entered is correct, however greater than the available balance, select Cancel and submit a Budget Modification. See, Budget Modification details below.
A44: REPORTING EARNED PROJECT INCOME
A45: Any income you make from your award is considered project income and must be reported on the Financial Invoice form. When project income is earned, grantee will report this earned income on the Project Income row of the Financial Invoice in the “This Period” section. Grantee will also provide detail on the project income earned in the “Expenditure Descriptions – Units / $ Amounts” section in the “Project Income Earned” row of the Financial Invoice. Examples may include: amount of client reimbursement to landlord/project for rent and/or interest generated on grant funds held in a bank account. (See Grant Administration Guide, Section 13, Project and Other Income for more detail on project income and reporting requirements.)
A47: EXPENDITURE DESCRIPTION
A48: For each dollar amount entered as an expenditure, enter a brief but detailed description. Your expenditures should correlate to Project Budget Narrative, which is listed on its own tab along with approved modification requests.
A50: PERSON PREPARING REPORT
A51: The grantee will designate an individual to prepare invoices. The Authorized Financial Officer cannot prepare invoices.
A52: The individual who prepares invoices will provide their contact information and the date the invoice was prepared under the PERSON PREPARING REPORT section. Then, forward the Invoice Workbook to the Authorized Financial Officer for review and approval.
A54: AUTHORIZED FINANCIAL OFFICER
A55: The Authorized Financial Officer is the Financial Officer listed in the Grant Agreement, STD 213 and/or Grantee Contact Information Sheet, Form 227.
A56: The Authorized Financial Officer cannot be the Project Director or the individual preparing the invoice.
A57: The Authorized Financial Officer must review each line item expenditure and description. Then, approve the invoice by checking the certification box and providing their contact information and the date of approval.
A58: Once the invoice is approved, the Authorized Financial Officer shall email the Invoice Workbook to the any grant inbox: adultreentrygrant@bscc.ca.gov. The Authorized Financial Officer is the only authorized party to submit an Invoice Workbook to the BSCC.
A59: Approved Financial Invoice
A60: Once BSCC staff reviews and approves the Financial Invoice, an updated Invoice Workbook will be available on the BSCC website. All approved Financial Invoices will be locked from editing but will be viewable in the Invoice Workbook.
A62: Advance Payment Invoice – Form 201A
A64: How to Complete the Advance Payment Invoice
A65: Each Advance Payment Invoice has a separate workbook tab titled, # ADVANCE PAYMENT. The Advance Payment Invoice will allow grantees to enter data into the green shaded fields; all other fields are locked.
A66: To complete the Advance Payment form, grantees must complete the following:
A67:  Idenitfy the effective invoice
A68:  Idenitfy the person preparing the report
A69:  Complete the information and signature for the Authorized Financial Officer.
A70: Advance Disbursement Details
A71: Grantees will receive three advance payments throughout the life of the grant agreement. Each advance payment will be one-third of the total grant award.
A72: Eighty percent of the total advance disbursement must be expended prior to requesting the next advance payment.
A73: Approved Advance Payment Invoice
A74: Once BSCC staff reviews and approves the Advance Payment Invoice, the updated Invoice Workbook will be emailed to the Authorized Financial Officer and the individual that prepared the report. All approved Advance Payment Invoices will be locked from editing but will be viewable in the Invoice Workbook.
A76: Modification Request - Form BSCC 223.1
A78: Modification Request Requirements
A79: It is the grantees responsibility to receive prior approval from the Field Representative for modifications to the budget or budget narrative. Once the Field Representative approves a modification to the budget or budget narrative, the grantee may complete and submit a Modification Request.
A80: The Modification Request Form allows the grantee to:  Make a change within a line-item change that modifies the grant project narrative, but does not change the total dollar amount of the line item.  Modify the budget by moving funds from one line item to another; or  Allocate earned project income
A82: The grantee must allow a minimum of 10 working days, for the modification form to be submitted and approved by the BSCC prior to completing the next invoice.
A84: How to Complete a Modification Request
A85: Grantees can access the Modification Request form by selecting the tab titled, MODIFICATION REQUEST. For the Modification Request form, grantees can enter data into the yellow-shaded fields; all other fields are locked. First, the grantee must select the purpose of the modification by checking the appropriate box in the yellow section at the top of the form.
A87: The following instructions are for the yellow-shaded fields in the Modification Request to be completed by the Grantee.
A89: Modification Request # and Effective on Invoice #
A90: The grantee shall identify the budget modification number by selecting the next number in sequential order (1 if it's the first) and then identify on which invoice the modification becomes effective.
A92: CHANGES (+/-) and JUSTIFICATION FOR MODIFIED BUDGET
A93: Line-item changes - Complete only the JUSTIFICATION FOR MODIFICATION section below the budget table. The justification must: list the affected line-item(s), detail how the original budget narrative has changed, and explain why the change is necessary. Line-item changes do not change the budget $$. Budget modifications - complete the CHANGES (+/-) section by using a + (plus symbol) followed by a whole dollar amount in the line item that is increasing and using a - (minus symbol) followed by a whole dollar amount in the line item that is decreasing. The TOTAL line must show zeros. In addition, complete the JUSTIFICATION FOR MODIFICATION section. The justification must: list the affected line-item(s), detail how the original budget narrative has changed, and explain why the change is necessary Project Income Allocation - use the Project Income column in the CHANGES (+/-) to show how the income will be allocated across line-items. In addition, complete the JUSTIFICATION FOR MODIFICATION section. The justification must: list the affected line-item(s) and provide narrative detail about how the project income will be used to advance program objectives. (See Grant Administration Guide, Section 13, Project and Other Income)
A95: PERSON PREPARING REPORT
A96: The grantee will designate an individual to prepare Modification Requests. The Authorized Financial Officer cannot prepare Modification Requests.
A97: The individual who prepares the request will provide their contact information and the date the modification was prepared under the PERSON PREPARING REPORT section. Then, forward the Invoice Workbook to the Authorized Financial Officer for review and approval.
A99: AUTHORIZED FINANCIAL OFFICER
A100: The Authorized Financial Officer is the Financial Officer listed in the Grant Agreement, STD 213 and/or Grantee Contact Information Sheet, Form 227.
A101: The Authorized Financial Officer cannot be the Project Director or the individual preparing the modification request.
A102: The Authorized Financial Officer must review each line item change, narrative change and justifications. Then, approve the modification request by checking the certification box and providing their contact information and the date of approval.
A103: Once the modification request is approved, the Authorized Financial Officer shall email the Invoice Workbook to the any grant inbox: adultreentrygrant@bscc.ca.gov. The Authorized Financial Officer is the only authorized party to submit it an Invoice Workbook to the BSCC.
A105: Approved Modification Request
A106: Once BSCC staff reviews and approves the Modification Request, the updated Invoice Workbook will be emailed to the Authorized Financial Officer and the individual who prepared the re quest. All approved modifications will be locked from editing but will be viewable in the Invoice Workbook.
